{"text_format":"1","workbook":"xlsx","n_sheets":21,"sheets":["Cover Page","Contents","Facility Info","Operational Data","Operational Summary","Perf. Form 1","Energy Form 1","Permit Compliance","Improvements","Public Liasion","Residue Quality ","Water","Air (periodic)","Air (CEMS)","NOx","SO2","HCl","TOC","Particulates","NH3","CO 95% 10 min"],"not_rendered":{"charts":7,"images":2,"macros":1,"external_links":0,"defined_names":21,"comments":0,"pivot_tables":0},"unopened":[],"bounds":{"document_bytes":16777216,"sheet_cells":100000,"rows_first":2000,"rows_last":500,"rows_between":2000,"halvings":0,"cell_chars":16384,"cell_head_chars":4096},"cells_cut":0,"cells_raw":0,"read":"whole","date_system":"1900"}

{"sheet":"Cover Page","index":0,"n_rows":53,"n_cols":14,"rows_kept":53,"cut":false,"hidden":false,"merged":[[48,2,48,3],[48,6,48,8],[52,2,52,3],[36,1,36,8],[40,2,40,8],[42,2,42,4],[44,2,44,4],[46,2,46,3],[46,6,46,8],[13,13,18,15],[34,1,34,8],[0,3,5,6],[7,1,23,8],[28,1,28,8],[30,1,30,8],[32,1,32,8]]}
[null,null,null,"Add company logo"]
[null,null,null,null,null,null,null,null,null,null,null,null,null,"Version 2.1 11/11/19"]
[]
[]
[]
[]
[]
[null,"Add photo"]
[]
[]
[]
[]
[null,null,null,null,null,null,null,null,null,null,null,null,null,"Notes:"]
[null,null,null,null,null,null,null,null,null,null,null,null,null,"This template may require adjustments by individual operators to meet specific reporting requirements as defined in the site Permit(s)"]
[]
[]
[]
[]
[]
[]
[]
[]
[]
[]
[]
[]
[]
[]
[null,"Annual Performance Report 2021"]
[]
[null,"Permit EPR/XP3833DK"]
[]
[null,"enfinium Ferrybridge 2 Ltd"]
[]
[null,"Ferrybridge 2"]
[]
[]
[]
[null,"Year:",2021]
[]
[null,"Address:","Stranglands Lane, Knottingley, West Yorkshire, WF11 8SQ"]
[]
[null,"Tel: ","01977 636963"]
[]
[null,"Email: ","john.warren@enfinium.co.uk"]
[]
[null,"Prepared by:","John Warren",null,null,"Position:","Environmental Manager"]
[]
[null,"Approved by:","John Warren",null,null,"Position:","Environmental Manager"]
[]
[null,"Version:",1]
[]
[null,"Issue Date:","2022-01-31"]

{"sheet":"Contents","index":1,"n_rows":44,"n_cols":11,"rows_kept":44,"cut":false,"hidden":false,"merged":[[43,0,46,9],[36,1,36,6],[37,1,37,6],[38,1,38,6],[39,1,39,6],[40,1,40,6],[41,1,41,6],[35,1,35,6],[21,1,21,6],[22,1,22,6],[23,1,23,6],[26,1,26,6],[27,1,27,6],[28,1,28,6],[29,1,29,6],[30,1,30,6],[31,1,31,6],[34,1,34,6],[20,1,20,6],[9,1,9,6],[10,1,10,6],[11,1,11,6],[12,1,12,6],[13,1,13,6],[14,1,14,6],[15,1,15,6],[16,1,16,6],[17,1,17,6],[18,1,18,6],[19,1,19,6],[4,10,7,14],[8,1,8,6],[3,1,3,6],[4,1,4,6],[5,1,5,6],[6,1,6,6],[7,1,7,6]]}
[{"$f":"+'Cover Page'!$B$29","v":"Annual Performance Report 2021"},null,null,null,{"$f":"+'Cover Page'!$B$33","v":"enfinium Ferrybridge 2 Ltd"}]
[]
["Contents",null,null,null,null,null,null,null,null,null,"Notes:"]
["Section","Subject",null,null,null,null,null,"Page ",null,null,"Section references and Page nos. to be inserted"]
[null,"Facility Information",null,null,null,null,null,4,null,null,"Sections and Subjects may require adjustment by individual operators to meet specific reporting requirements as defined in the sites Permit(s)"]
[null,"Operational Data",null,null,null,null,null,5]
[null,"Operational Summary",null,null,null,null,null,7]
[null,"Performance Form 1",null,null,null,null,null,8]
[null,"Energy Form 1",null,null,null,null,null,10]
[null,"Permit Compliance",null,null,null,null,null,11]
[null,"Improvements",null,null,null,null,null,13]
[null,"Public Liasion",null,null,null,null,null,14]
[null,"Residue Quality - Optional",null,null,null,null,null,15]
[null,"Emissions to Water",null,null,null,null,null,16]
[null,"Emissions to Air (periodically monitored)",null,null,null,null,null,17]
[null,"Emissions to Air (continuously monitored)",null,null,null,null,null,19]
[null,"Oxides of Nitrogen emissions",null,null,null,null,null,20]
[null,"Sulphur Dioxide emissions",null,null,null,null,null,21]
[null,"Hydrogen Chloride emissions",null,null,null,null,null,22]
[null,"Total Organic Carbon emissions",null,null,null,null,null,23]
[null,"Particulate Matter emissions",null,null,null,null,null,24]
[null,"Ammonia emissions",null,null,null,null,null,25]
[null,"Carbon Monoxide emissions",null,null,null,null,null,26]
[]
[]
["Version Control"]
["Section","Information",null,null,null,null,null,"Date"]
[]
[]
[]
[]
[]
[]
["Distribution"]
["Copy","Name, Role",null,null,null,null,null,"No."]
[]
[]
[]
[]
[]
[]
[]
[]
["This report is required under the Industrial Emissions Directive’s Article 55(2) requirements on reporting and public information on waste incineration plants and co-incineration plants, which require the operator to produce an annual report on the functioning and monitoring of the plant and make it available to the public. "]

{"sheet":"Facility Info","index":2,"n_rows":22,"n_cols":11,"rows_kept":22,"cut":false,"hidden":false,"merged":[[4,0,17,8],[21,0,53,8],[4,10,13,13],[21,10,30,13]]}
[{"$f":"+'Cover Page'!$B$29","v":"Annual Performance Report 2021"},null,null,null,{"$f":"+'Cover Page'!$B$33","v":"enfinium Ferrybridge 2 Ltd"}]
[]
["Plant Description and Design",null,null,null,null,null,null,null,null,null,"Notes:"]
[]
["Ferrybridge 2 is designed for the disposal of waste with energy recovery in an incineration plant and is permitted under Section 5.1 A(1)(b) the incineration of non-hazardous waste in an incineration plant with a capacity exceeding 3 tonnes per hour. The installation is located on land to the north of Ferrybridge 1 site, close to the A1(M). It lies approximately 1km northwest of the village of Ferrybridge, 2km northwest of Knottingley, 1.8km southeast of Ferry Fryston, and 3km northeast of Pontefract, at grid reference SE 472 254. The facility has a throughput limit of 725,000 tonnes per year of waste which can include refuse derived fuel, waste wood and commercial and industrial waste. The facility consists of two combustion lines and generates approximately 80 MWe of electricity, of which approximately 73 MWe is exported. Moving grate technology is used for burning the waste material. The furnace design ensures that a temperature of at least 850 degrees celcius for a period of at least two seconds is achieved in the combustion chamber. Auxillary burners firing a low sulphur gas oil are automatically triggered by online process monitoring equipment are used to ensure the temperature does not fall below 850 degrees celcius. Hot gases from the furnace pass in a boiler. Steam raised in the boiler is passed to a turbine to generate electricity for export to the National Grid.",null,null,null,null,null,null,null,null,null,"Include summary of plant design, design capacity, no. of combustion lines, electrical and heat capacity and any other general information that descibes the facility, its location and purpose "]
[]
[]
[]
[]
[]
[]
[]
[]
[]
[]
[]
[]
[]
[]
["Summary of Operational Processes and Procedures"]
[]
["Key processes include waste reception, waste storage, water use, drainage, flue gas and air supply systems, boilers, treatment of exhaust gases, treatment and storage of residues and water recycling, stacks, devices and systems for controlling incineration operations, recording and monitoring conditions. The site has an Environmental Management System accredited to ISO 14001.  \n\nHealth and Safety management system covering all aspects of health and safety comprising policy, procedures, risk assessments, Key Performance Indicators (KPIs) and objectives reviewed periodically. Accreditation to ISO 45001:2018 was obtained in April 2020.\n\nMaintenance across the facilities is broken down in to reactive (breakdown) maintenance, and planned preventive maintenance. Preventive maintenance is conducted via the philosophy of Risk Based Inspections to ensure the safety of personnel and availability of the plant is cost effectively maintained.",null,null,null,null,null,null,null,null,null,"Include summary of key processes and procedures such as (but not limited to); waste reception, control rooms, grate, bed and bolier, energy & heat  generation, cooling systems, residue management, emission controls, health and safety systems, maintenance"]

{"sheet":"Operational Data","index":3,"n_rows":71,"n_cols":8,"rows_kept":71,"cut":false,"hidden":false,"merged":[[33,1,51,1],[30,2,30,5],[30,6,30,7],[3,1,3,2],[7,1,19,1],[23,1,26,1],[28,1,29,1]]}
[{"$f":"+'Cover Page'!$B$29","v":"Annual Performance Report 2021"},null,null,null,{"$f":"+'Cover Page'!$B$33","v":"enfinium Ferrybridge 2 Ltd"}]
[]
["Operational Data"]
["Plant Size",725000,null,"tonnes pa",80,"MWth",73,"MWe"]
["No. of combustion lines",2,null,"No. of Turbines:",null,1]
[]
["Waste types received","Unit","Q1","Q2","Q3","Q4","Year Total","%"]
["Household / Local Authority","tonnes",null,null,null,null,{"$f":"SUM(C8:F8)","v":0},{"$f":"IF(G8>0,G8/$G$18,\"-\")","v":"-"}]
["Commercial & Industrial ",null,null,null,null,null,{"$f":"SUM(C9:F9)","v":0},"-"]
["Hazardous ",null,null,null,null,null,0,"-"]
["Clinical",null,null,null,null,null,0,"-"]
["Waste wood (biomass) ",null,null,null,null,null,0,"-"]
["Refuse derived fuel ",null,169270.28,147840.1,176918.16,174912.3,668940.84000000008,1]
["Solid recovered fuel ",null,null,null,null,null,0,"-"]
["Other [Please specify]",null,null,null,null,null,0,"-"]
["Other [Please specify]"]
["Other [Please specify]"]
["Total waste received",null,{"$f":"SUM(C8:C17)","v":169270.28},{"$f":"SUM(D8:D17)","v":147840.1},{"$f":"SUM(E8:E17)","v":176918.16},{"$f":"SUM(F8:F17)","v":174912.3},{"$f":"SUM(G8:G17)","v":668940.84000000008},{"$f":"IF(G18>0,G18/$G$18,\"-\")","v":1}]
["Rejected Waste ",null,null,null,null,null,{"$f":"SUM(C19:F19)","v":0},{"$f":"IF(G19>0,G19/$G$18,\"-\")","v":"-"}]
["Waste transferred out",null,null,null,null,null,{"$f":"SUM(C20:F20)","v":0},{"$f":"IF(G20>0,G20/$G$18,\"-\")","v":"-"}]
["Total waste combusted",null,{"$f":"C18-SUM(C19:C20)","v":169270.28},{"$f":"D18-SUM(D19:D20)","v":147840.1},176918.16,174912.3,{"$f":"SUM(C21:F21)","v":668940.84000000008},{"$f":"IF(G21>0,G21/$G$21,\"-\")","v":1}]
[]
["Energy Useage / Export","Unit","Q1","Q2","Q3","Q4","Year Total","KWh/te"]
["Power Generated","MWh",169391.6,151470,178428.3,178239.3,{"$f":"SUM(C24:F24)","v":677529.2},{"$f":"IF(G24>0,G24*1000/$G$21,\"-\")","v":1012.8387437071415}]
["Power Exported",null,154376.9,139844.5,162616.79999999999,162569.70000000001,{"$f":"SUM(C25:F25)","v":619407.9},{"$f":"IF(G25>0,G25*1000/$G$21,\"-\")","v":925.95318294514641}]
["Power Used on site",null,{"$f":"C24-C25","v":15014.700000000012},{"$f":"D24-D25","v":11625.5},15811.5,15669.599999999977,{"$f":"SUM(C26:F26)","v":58121.299999999988},86.885560761995009]
["Power Imported",null,0,319.73700000000002,22.898,0,342.63500000000005,0.51220523477083568]
["Parasitic Load","%",{"$f":"IF(C24>0,1-C25/(C24+C27),\"-\")","v":8.8638988001766394E-2},{"$f":"IF(D24>0,1-D25/(D24+D27),\"-\")","v":7.8695946353738E-2},8.8732371524902764E-2,8.79132716522113E-2,8.6246296101091025E-2]
["Thermal Energy Produced","GWh",null,null,null,null,{"$f":"SUM(C29:F29)","v":0},{"$f":"IF(G29>0,G29*1000/$G$21,\"-\")","v":"-"}]
["Thermal Energy Exported",null,null,null,null,null,0,{"$f":"IF(G30>0,G30*1000/$G$21,\"-\")","v":"-"}]
["R1 value",null,0.85,null,null,null,"Design / Operational / n/a"]
[]
["Waste Disposal & Recovery","Unit","Q1","Q2","Q3","Q4","Year Total","% inputs"]
["APC Residues - produced","tonnes",6960.26,5906.38,6811.2,7559.58,{"$f":"SUM(C34:F34)","v":27237.42},{"$f":"IF(G34>0,G34/$G$21,\"-\")","v":4.0717232931988416E-2}]
["IBA - produced",null,31195,29063,33910,30627,124795,{"$f":"IF(G35>0,G35/$G$21,\"-\")","v":0.18655610860894661}]
["Metals recycling",null,1167.72,991.34,1427.18,1476.42,{"$f":"SUM(C36:F36)","v":5062.66},{"$f":"IF(G36>0,G36/$G$21,\"-\")","v":7.5681729941918319E-3}]
["Dry mixed recycling",null,0.56000000000000005,0.57999999999999996,0.38,0.62,{"$f":"SUM(C37:F37)","v":2.14},3.1990870821999743E-6]
["General waste",null,4.5,14.52,5.5,4.38,28.9,4.3202624614756656E-5]
["APCr contaminated waste",null,2.5,1.25,28.786000000000001,6.8,{"$f":"SUM(C39:F39)","v":39.335999999999999},{"$f":"IF(G39>0,G39/$G$21,\"-\")","v":5.8803406292251483E-5}]
["Waste lime",null,1.6,1.04,0,0.72,3.3600000000000003,5.0228656991551002E-6]
["Activated carbon waste",null,0.25,0,0,0,0.25,3.737251264252306E-7]
["Ash contaminated water",null,3.62,0,0,0,3.62,5.4115398306373394E-6]
["Waste wood",null,0.52,2.2000000000000002,0.6,0.74,4.0600000000000005,6.069296053145746E-6]
["Glycol liquid waste",null,0,0.04,0,0,0.04,5.9796020228036894E-8]
["Oil contaminated solid waste",null,0.75,1.65,1,1.5,4.9000000000000004,7.3250124779345209E-6]
["Spent ion exchange resin",null,0.5,0.04,3.3000000000000002E-2,0,0.57300000000000006,8.5657798976662863E-7]
["Waste Electronic and Electrical Equipment",null,0,0,0.1,0,0.1,1.4949005057009226E-7]
["Waste hydraulic oil",null,0,2.84,0,0,2.84,4.2455174361906192E-6]
["Oversized unburned material",null,246.96,147.22,87.9,27.64,{"$f":"SUM(C49:F49)","v":509.72},{"$f":"IF(G49>0,G49/$G$21,\"-\")","v":7.619806857658742E-4}]
["Sewage",null,0,47.3,0,0,47.3,7.0708793919653626E-5]
["Cement",null,0,0,0,22,22,3.2887811125420294E-5]
["Other",null,0,0,0,0,0,"-"]
[]
["Raw Material Usage","Unit","Q1","Q2","Q3","Q4","Year Total","kg or Ltr /te"]
["Mains Water","m3",23924,21821,13312,13334,{"$f":"SUM(C55:F55)","v":72391},{"$f":"IF(G55>0,G55*1000/$G$21,\"-\")","v":108.21734250819549}]
["Other Water","m3",22942.511999999999,16619.027999999998,25757.89,18657.28,83976.709999999992,{"$f":"IF(G56>0,G56*1000/$G$21,\"-\")","v":125.53682624609969}]
["Ammonia / Urea","kgs",31467,75290,58772,77079,242608,{"$f":"IF(G57>0,G57*1000/$G$21,\"-\")","v":362.67482188708942}]
["Activated Carbon","kgs",62575,59023,66582,68961,257141,384.40021093644089]
["Lime / hydrated lime","kgs",3070900,2679700,3248120,3460610,12459330,18625.458717694673]
["Fuel oil","ltrs",146953,163860,64232.481,55810.559999999998,430856.04100000003,644.0869135751974]
["Gas","cf",0,0,0,0,0,"-"]
["Other",null,0,0,0,0,0,"-"]
[]
["Summary of Hours","Line/Unit","Q1","Q2","Q3","Q4","Year Total"]
["Hours of waste combustion, total",{"$f":"+B5","v":2},2112.6579999999999,1971.644,2204,2095.4789999999998,{"$f":"SUM(C65:F65)","v":8383.780999999999},{"$f":"+(G65)/8760","v":0.95705262557077619}]
["Hours of waste combustion, total",2,2155.6579999999999,1955.644,2201,2208.4789999999998,8520.780999999999,{"$f":"+(G66)/8760","v":0.97269189497716879}]
["Hours of turbine operations, total",1,2155,1955,2201,2208,8519,0.97248858447488584]
["Hours of heat / steam export",null,0,0,0,0,0,{"$f":"IF(B68>0,#REF!/8760,\"n/a\")","v":"n/a"}]
["Abnormal Events","qty.",0,null,0,1,1,{"$f":"IF(G69>0,\"yes\",\"no\")","v":"yes"}]
["Abnormal operation","hours",0,0,0,0.5,0.5,{"$f":"+(G70)/8760","v":5.7077625570776254E-5}]
["Permit Breaches","qty.",0,0,0,0,0,{"$f":"IF(G71>0,\"yes\",\"no\")","v":"no"}]

{"sheet":"Operational Summary","index":4,"n_rows":31,"n_cols":11,"rows_kept":31,"cut":false,"hidden":false,"merged":[[4,0,26,8],[30,0,51,8],[4,10,13,13],[30,10,39,13]]}
[{"$f":"+'Cover Page'!$B$29","v":"Annual Performance Report 2021"},null,null,null,{"$f":"+'Cover Page'!$B$33","v":"enfinium Ferrybridge 2 Ltd"}]
[]
["Summary of Plant Operations and Maintenance during the reporting year",null,null,null,null,null,null,null,null,null,"Notes:"]
[]
["Ferrybridge 2 Operations - Significant downtime events\n23/2/21 – Boiler 1 Feed hopper bridge and auxiliary crane umbilical snapped so unavailable (13hrs).\n3/3/21 – Boiler 1 Feed hopper blockage (15hrs)\n12/3/21 –  Boiler 1 ID fan bearing replacement (16hrs)\n14/4/21 - Crane tripped above Boiler 2 hopper (10hrs)\n22/4/21 - Boiler 2 ID fan motor change (23hrs)\n4/5/21 – Boiler 1 annual outage (204hrs)\n9/5/21 – Boiler 2 annual outage (193hrs)\n22/8/21 – Plant taken off as a precaution during Ferrybridge C PS demolition.\n22/12/21 – Boiler 1 steam isolation valve replacement and 2nd/3rd pass blockage (113hrs).\n\nMaintenance\nAnnual boiler outages completed on lines 1 & 2. Work scope included (but was not limited to):\n•Full boiler inspection including refractory, wall panels and grate.\n•Full inspection of associated plant with minor refurb work (Ash transport, FGT, Primary/Secondary air etc).\n\nUpgrades\n•Installation of secondary standby CEMS analyser on both lines.",null,null,null,null,null,null,null,null,null,"Include summary of key operational and/or mainteanance activity undertaken in the year, such as any major component upgrades and/or replacements "]
[]
[]
[]
[]
[]
[]
[]
[]
[]
[]
[]
[]
[]
[]
[]
[]
[]
[]
[]
[]
[]
[]
[]
["Summary of Residue Handling for the reporting year"]
[]
["Incinerator Bottom Ash (IBA) from Ferrybridge 2 is stored in the Ash Bunker and then outloaded by the ash crane grab to receiving lorries. Since operations began in 2019, the IBA has been collected and taken to Blue Phoenix Ferrybridge (formerly Ballast Phoenix) site, which is adjacent to the north of the Ferrybridge 2 site. Movement of the IBA is carried out by dumper truck via a predominantly internal road network to the Blue Phoenix site where it is processed into Incinerator Bottom Ash Aggregate (IBAA).\nAPCr is collected in silos and then discharged to receiving tanker for off-site disposal. The APCr is transported to OCO Technology and occasionally to Castle Environmental Ltd. Castle Environmental receives APCr at two sites located in Ilkeston (Derbyshire) and Stoke on Trent, whereas OCO Technology has one site located in Leeds. Castle Environmental currently recycles approximately 79% of the APCr whereas OCO Technology recycles 100%.",null,null,null,null,null,null,null,null,null,"Include in here a summary of residue handling regimes and destinations "]

{"sheet":"Perf. Form 1","index":5,"n_rows":63,"n_cols":10,"rows_kept":63,"cut":false,"hidden":false,"merged":[[27,6,27,7],[27,8,27,9],[28,0,28,1],[28,2,28,3],[28,4,28,5],[28,6,28,7],[28,8,28,9],[18,0,18,1],[18,2,18,3],[18,4,18,5],[18,6,18,7],[18,8,18,9],[19,0,19,1],[19,2,19,3],[19,4,19,5],[19,6,19,7],[19,8,19,9],[15,0,15,1],[15,2,15,3],[15,4,15,5],[15,6,15,7],[15,8,15,9],[16,0,16,1],[16,2,16,3],[16,4,16,5],[16,6,16,7],[16,8,16,9],[13,0,13,1],[13,2,13,3],[13,4,13,5],[13,6,13,7],[13,8,13,9],[14,0,14,1],[14,2,14,3],[14,4,14,5],[14,6,14,7],[14,8,14,9],[56,0,56,1],[58,0,58,9],[59,0,60,9],[47,0,47,9],[48,0,49,9],[52,0,52,1],[52,2,52,9],[54,0,54,1],[55,0,55,1],[45,0,45,3],[45,4,45,5],[45,7,45,8],[46,0,46,3],[46,4,46,5],[46,7,46,8],[43,0,43,3],[43,4,43,5],[43,7,43,8],[44,0,44,3],[44,4,44,5],[44,7,44,8],[42,0,42,3],[42,4,42,5],[42,7,42,8],[32,0,32,3],[32,4,32,5],[32,6,32,7],[32,8,32,9],[34,0,34,9],[35,0,37,9],[31,0,31,3],[31,4,31,5],[31,6,31,7],[31,8,31,9],[40,0,40,3],[40,7,40,8],[41,0,41,3],[41,4,41,5],[41,7,41,8],[23,6,23,7],[23,8,23,9],[24,0,24,1],[24,2,24,3],[24,4,24,5],[24,6,24,7],[24,8,24,9],[30,0,30,1],[30,2,30,3],[30,4,30,5],[30,6,30,7],[30,8,30,9],[26,0,26,1],[26,2,26,3],[26,4,26,5],[26,6,26,7],[26,8,26,9],[25,0,25,1],[25,2,25,3],[25,4,25,5],[25,6,25,7],[27,0,27,1],[27,2,27,3],[27,4,27,5],[11,0,11,1],[11,2,11,3],[11,4,11,5],[11,6,11,7],[11,8,11,9],[12,0,12,1],[12,2,12,3],[12,4,12,5],[12,6,12,7],[12,8,12,9],[9,0,9,9],[10,0,10,1],[10,2,10,3],[10,4,10,5],[10,6,10,7],[10,8,10,9],[2,0,2,4],[2,6,2,8],[3,1,3,4],[5,3,5,4],[5,6,5,7],[8,0,8,1],[8,2,8,3],[8,4,8,5],[8,6,8,7],[8,8,8,9],[17,0,17,1],[17,2,17,3],[17,4,17,5],[17,6,17,7],[17,8,17,9],[29,0,29,1],[29,2,29,3],[29,4,29,5],[29,6,29,7],[29,8,29,9],[21,0,21,1],[21,2,21,3],[21,4,21,5],[21,6,21,7],[21,8,21,9],[22,0,22,9],[20,0,20,3],[20,4,20,5],[20,6,20,7],[20,8,20,9],[25,8,25,9],[23,0,23,1],[23,2,23,3],[23,4,23,5]]}
[{"$f":"+'Cover Page'!C39","v":2021}," Annual Reporting Performance Form 1"]
[]
[{"$f":"+'Cover Page'!B31","v":"Permit EPR/XP3833DK"},null,null,null,null,"Operator: ",{"$f":"+'Cover Page'!B37:I37","v":0}]
["Facility:",{"$f":"+'Cover Page'!B33:I33","v":"enfinium Ferrybridge 2 Ltd"},null,null,null,"Form:","Performance 1"]
[]
["Reporting  Period from: ",null,null,"2021-01-01",null,"to:","2021-12-31"]
[]
[{"$f":"+A1","v":2021},"Annual Reporting of Waste Disposal and Recovery"]
["Waste Description",null,"Disposal Route(s)",null,"Disposal Tonnes",null,"Recovery Tonnes",null,"% / tonne of waste incinerated"]
["1) Hazardous Wastes"]
["APC Residues",null,"R5/D9",null,1052.5,null,26184.9,null,{"$f":"IF((E11+G11)>0,(E11+G11)/'Operational Data'!$G$21, \"-\")","v":4.0717203033978307E-2}]
["APCr contaminated waste",null,"D14/D15/R13",null,38.340000000000003,null,1,null,{"$f":"IF((E12+G12)>0,(E12+G12)/'Operational Data'!$G$21, \"-\")","v":5.8809385894274298E-5}]
["Waste lime",null,"D9/D14/R13",null,2.16,null,1.2,null,{"$f":"IF((E13+G13)>0,(E13+G13)/'Operational Data'!$G$21, \"-\")","v":5.0228656991551002E-6}]
["Ash contaminated water",null,"D9",null,3.62,null,0,null,{"$f":"IF((E14+G14)>0,(E14+G14)/'Operational Data'!$G$21, \"-\")","v":5.4115398306373394E-6}]
["Glycol waste",null,"R13",null,0,null,0.04,null,{"$f":"IF((E15+G15)>0,(E15+G15)/'Operational Data'!$G$21, \"-\")","v":5.9796020228036894E-8}]
["Oil contaminated solid waste",null,"R13",null,0,null,4.9000000000000004,null,{"$f":"IF((E16+G16)>0,(E16+G16)/'Operational Data'!$G$21, \"-\")","v":7.3250124779345209E-6}]
["Spent ion exchange resin",null,"D14/R13",null,0.04,null,0.53300000000000003,null,{"$f":"IF((E17+G17)>0,(E17+G17)/'Operational Data'!$G$21, \"-\")","v":8.5657798976662863E-7}]
["Waste Electronic and Electrical Equipment",null,"R13",null,0,null,0.1,null,{"$f":"IF((E18+G18)>0,(E18+G18)/'Operational Data'!$G$21, \"-\")","v":1.4949005057009226E-7}]
["Waste hydraulic oil",null,"R13",null,0,null,2.84,null,{"$f":"IF((E19+G19)>0,(E19+G19)/'Operational Data'!$G$21, \"-\")","v":4.2455174361906192E-6}]
["Activated carbon waste",null,"D14",null,0.25,null,0,null,{"$f":"IF((E20+G20)>0,(E20+G20)/'Operational Data'!$G$21, \"-\")","v":3.737251264252306E-7}]
["Total Hazardous Waste",null,null,null,{"$f":"SUM(E11:F20)","v":1096.9099999999999},null,{"$f":"SUM(G11:H20)","v":26195.513000000003},null,{"$f":"IF((E21+G21)>0,(E21+G21)/'Operational Data'!$G$21, \"-\")","v":4.0799456944503494E-2}]
[]
["2) Non-Hazardous Wastes"]
["IBA",null,"R5",null,0,null,124795,null,{"$f":"IF((E24+G24)>0,(E24+G24)/'Operational Data'!$G$21, \"-\")","v":0.18655610860894661}]
["Ferrous Metal",null,"R4",null,0,null,5062.66,null,{"$f":"IF((E25+G25)>0,(E25+G25)/'Operational Data'!$G$21, \"-\")","v":7.5681729941918319E-3}]
["Dry Mixed Recyclables",null,"R13",null,0,null,2.14,null,{"$f":"IF((E26+G26)>0,(E26+G26)/'Operational Data'!$G$21, \"-\")","v":3.1990870821999743E-6}]
["General Waste",null,"R13",null,0,null,28.9,null,{"$f":"IF((E27+G27)>0,(E27+G27)/'Operational Data'!$G$21, \"-\")","v":4.3202624614756656E-5}]
["Waste wood",null,"R3",null,0,null,4.0599999999999996,null,{"$f":"IF((E28+G28)>0,(E28+G28)/'Operational Data'!$G$21, \"-\")","v":6.0692960531457443E-6}]
["Sewage",null,"D8",null,47.3,null,0,null,{"$f":"IF((E29+G29)>0,(E29+G29)/'Operational Data'!$G$21, \"-\")","v":7.0708793919653626E-5}]
["Cement",null,"D14",null,22,null,0,null,{"$f":"IF((E30+G30)>0,(E30+G30)/'Operational Data'!$G$21, \"-\")","v":3.2887811125420294E-5}]
["Oversized unburned material",null,"R13",null,0,null,509.72,null,{"$f":"IF((E31+G31)>0,(E31+G31)/'Operational Data'!$G$21, \"-\")","v":7.619806857658742E-4}]
["Total Non-Hazardous Waste",null,null,null,{"$f":"SUM(E24:F31)","v":69.3},null,{"$f":"SUM(G24:H31)","v":130402.48},null,{"$f":"IF((E32+G32)>0,(E32+G32)/'Operational Data'!$G$21, \"-\")","v":0.19504232990169951}]
["TOTAL WASTE",null,null,null,{"$f":"+E32+E21","v":1166.2099999999998},null,{"$f":"+G32+G21","v":156597.99299999999},null,{"$f":"IF((E33+G33)>0,(E33+G33)/'Operational Data'!$G$21, \"-\")","v":0.23584178684620297}]
[]
["Operator’s comments :"]
[]
[]
[]
[]
[{"$f":"+A1","v":2021},"Annual Reporting of Water and Other Raw Material Usage"]
["Raw Material",null,null,null,"Usage",null,"Unit","Specific Useage",null,"Unit"]
["Mains Water",null,null,null,{"$f":"+'Operational Data'!G55","v":72391},null,"m3",{"$f":"IF(E42>0,E42/'Operational Data'!$G$21,\"-\")","v":0.10821734250819548},null,"m3/te"]
["Total Water",null,null,null,{"$f":"+'Operational Data'!G56+'Operational Data'!G55","v":156367.71},null,"m3",{"$f":"IF(E43>0,E43/'Operational Data'!$G$21,\"-\")","v":0.23375416875429519},null,"m3/te"]
["Urea / Ammonia",null,null,null,{"$f":"+'Operational Data'!G57","v":242608},null,"kg",{"$f":"IF(E44>0,E44/'Operational Data'!$G$21,\"-\")","v":0.36267482188708938},null,"kg/te"]
["Activated Carbon",null,null,null,{"$f":"+'Operational Data'!G58","v":257141},null,"kg",{"$f":"IF(E45>0,E45/'Operational Data'!$G$21,\"-\")","v":0.38440021093644089},null,"kg/te"]
["Lime / hydrated lime / Sodium Bicarb.",null,null,null,{"$f":"+'Operational Data'!G59","v":12459330},null,"kg",{"$f":"IF(E46>0,E46/'Operational Data'!$G$21,\"-\")","v":18.625458717694674},null,"kg/te"]
[]
["Operator’s comments :"]
[]
[]
[]
[{"$f":"+A40","v":2021},"Annual Reporting of other performance indicators "]
["Parameter",null,"Results by Line"]
[null,null,"A1","A2","A3","A4","A5",null,"Turbine 1","Turbine 2"]
["Operating hours for the year, hours",null,8384,8521,null,null,null,null,8519]
["Number of periods of abnormal operation, qty.",null,0,1]
["Cumulative hours of abnormal operation for this year, hours",null,0,0.5]
[]
["Operator’s comments :"]
[]
[]
[]
["Signed: ",null,null,null,null,null,"Date:"]

{"sheet":"Energy Form 1","index":6,"n_rows":29,"n_cols":7,"rows_kept":29,"cut":false,"hidden":false,"merged":[[15,0,15,2],[15,3,15,4],[15,6,15,8],[17,0,17,8],[18,0,24,8],[13,0,13,2],[13,3,13,4],[13,6,13,8],[14,0,14,2],[14,3,14,4],[14,6,14,8],[11,0,11,2],[11,3,11,4],[11,6,11,8],[12,0,12,2],[12,3,12,4],[12,6,12,8],[9,0,9,2],[9,3,9,4],[9,6,9,8],[10,0,10,2],[10,3,10,4],[10,6,10,8],[2,6,2,8],[4,1,4,4],[6,3,6,4],[6,6,6,7],[8,0,8,2],[8,3,8,4],[8,6,8,8]]}
[{"$f":"+'Cover Page'!C39","v":2021}," Annual Reporting of Energy Usage/Export"]
[]
[{"$f":"+'Cover Page'!B31","v":"Permit EPR/XP3833DK"},null,null,null,null,"Operator: ",{"$f":"+'Cover Page'!B37:I37","v":0}]
[]
["Facility:",{"$f":"+'Cover Page'!B33:I33","v":"enfinium Ferrybridge 2 Ltd"},null,null,null,"Form:","Energy 1"]
[]
["Reporting  Period from: ",null,null,{"$f":"+'Perf. Form 1'!D6:E6","v":"2021-01-01"},null,"to:",{"$f":"+'Perf. Form 1'!G6:H6","v":"2021-12-31"}]
[]
["Energy Source",null,null,"Energy Usage",null,"Unit","Specific Useage (KWh/tonne incinerated"]
["Electricity Produced",null,null,{"$f":"+'Operational Data'!G24","v":677529.2},null,"MWh",{"$f":"+'Operational Data'!H24","v":1012.8387437071415}]
["Electricity Imported   ",null,null,{"$f":"+'Operational Data'!G27","v":342.63500000000005},null,"MWh",{"$f":"+'Operational Data'!H27","v":0.51220523477083568}]
["Electricity Exported",null,null,{"$f":"+'Operational Data'!G25","v":619407.9},null,"MWh",{"$f":"+'Operational Data'!H25","v":925.95318294514641}]
["Gas Oil",null,null,{"$f":"+'Operational Data'!G60*0.85/1000","v":366.22763485000002},null,"tonnes",{"$f":"+'Operational Data'!H60","v":644.0869135751974}]
["Steam/hot water exported",null,null,{"$f":"+'Operational Data'!G30","v":0},null,"GWh",{"$f":"+'Operational Data'!H30","v":"-"}]
[]
[]
[]
["Operator’s comments :"]
["Review of Combined Heat and Power (CHP) options. It is a permit requirement that the practicability of CHP options are reviewed at least every two years. Ferrybridge 2 is designed to be able to export the steam generated on site to provide heating to offtakers such as residential heating schemes or for industrial/commercial purposes. Given the location of the Ferrybridge 2 plant, there are currently no schemes in the local area that would benefit from the Ferrybridge 2 heat generation. A review meeting on 07/09/2020 confirmed that there were no discussions taking place with any potental heat offtakers. The sale of the SSE owned Ferrybridge C Power Station site will provide the best opportunity for potential heat offtakers to utilise the steam produced at Ferrybridge 2 and that an industrial offtaker would be most likely given the surrounding industrial land use. It is unlikely that a residential-type development would be permitted at such a location and therefore this limits the potential for heat offtakers. In addition, the existing commitments to the Capacity Market binds Ferrybridge 2 to the next 3-years ahead and this would need to be factored into any proposal for heat supply. In summary, Ferrybridge 2 has the potential to offload heat however the lack of viable schemes at present prevents this from being fully utilised."]
[]
[]
[]
[]
[]
[]
[]
[]
[]
["Signed: ",null,null,null,null,null,"Date:"]

{"sheet":"Permit Compliance","index":7,"n_rows":35,"n_cols":8,"rows_kept":35,"cut":false,"hidden":false,"merged":[[32,1,32,3],[32,4,32,6],[32,7,32,9],[33,1,33,3],[33,4,33,6],[33,7,33,9],[30,1,30,3],[30,4,30,6],[30,7,30,9],[31,1,31,3],[31,4,31,6],[31,7,31,9],[28,4,28,6],[28,7,28,9],[29,1,29,3],[29,4,29,6],[29,7,29,9],[22,0,22,10],[17,0,17,10],[23,1,23,3],[23,4,23,6],[23,7,23,9],[18,1,18,3],[18,4,18,6],[18,7,18,9],[19,1,19,3],[19,4,19,6],[19,7,19,9],[13,2,13,4],[13,5,13,8],[27,7,27,9],[28,1,28,3],[20,1,20,3],[20,4,20,6],[20,7,20,9],[24,1,24,3],[24,4,24,6],[24,7,24,9],[25,1,25,3],[25,4,25,6],[25,7,25,9],[26,7,26,9],[27,1,27,3],[27,4,27,6],[34,4,34,8],[9,0,9,1],[9,2,9,4],[9,5,9,8],[12,0,12,1],[14,0,14,1],[14,2,14,4],[14,5,14,8],[15,0,15,1],[15,2,15,4],[15,5,15,8],[26,1,26,3],[26,4,26,6],[12,2,12,4],[12,5,12,8],[13,0,13,1],[7,0,7,1],[7,2,7,8],[8,0,8,1],[8,2,8,4],[8,5,8,8],[10,0,10,1],[10,2,10,4],[10,5,10,8],[11,0,11,1],[11,2,11,4],[11,5,11,8]]}
[{"$f":"+'Cover Page'!$B$29","v":"Annual Performance Report 2021"},null,null,null,{"$f":"+'Cover Page'!$B$33","v":"enfinium Ferrybridge 2 Ltd"}]
[]
["Summary of Permit Compliance"]
[]
["Compliance with permit limits for continuously monitored pollutants"]
[]
["The plant met its emission limits as shown in the table below:"]
["Substance",null,"Percentage time compliant during operation"]
[null,null,"Half-hourly limit",null,null,"Daily limit"]
["Particulates",null,1,null,null,1]
["Oxides of nitrogen",null,1,null,null,1]
["Sulphur dioxide",null,1,null,null,1]
["Carbon monoxide",null,"100% or 100% 95% of 10-min averages",null,null,1]
["Total organic carbon",null,1,null,null,1]
["Hydrogen chloride",null,1,null,null,1]
[]
[]
["Summary of any notifications or non-compliances under the permit"]
["Date","Summary of notification or non-compliance [including Line/Reference]",null,null,"Reason ",null,null,"Measures taken to prevent reoccurrence"]
["2021-05-14","Line A1 exceedance of dust 1/2 hourly emission limit.",null,null,"Hopper flap 3 went beyond the closure limit sensor preventing signal being sent from the DCS to the CEMS to stop reporting emissions.",null,null,"Closure limits tested and adjusted to prevent recurrence."]
["2021-10-24","Line A2 exceedance of dust 1/2 hourly emission limit.",null,null,"Dust spike occurred after hopper flaps closed and waste ceased being charged to grate.",null,null,"Decision pending."]
[]
["Summary of any complaints received and actions to taken to resolve them."]
["Date","Summary of complaint [including Line/Reference]",null,null,"Reason *",null,null,"Measures taken to prevent reoccurrence"]
["2021-01-21","External complaint of odour via the Environment Agency. ",null,null,"Unsubstantiated",null,null,"Discussed at morning meeting, investigated and found to be unsubstantiated."]
["2021-02-04","External complaint of odour burnt rubbish/potato smell received from Environment Agency. ",null,null,"Unsubstantiated",null,null,"Discussed at morning meeting, investigation did not identify any potential sources, complaint unsubstantiated."]
["2021-04-09","External complaint received from resident of Ferrybridge with allegation of dust from site affecting his property.",null,null,"Unsubstantiated",null,null,"Discussed at morning meeting, investigated and found to be unsubstantiated. Email sent to complainant advising of outcome."]
["2021-05-18","External complaint about vehicle parking on Old Great North Road before 7am.",null,null,"Substantiated",null,null,"Investigation identified offending vehicle and driver was given permanent ban due to aggressive attitude."]
["2021-05-20","External complaint from resident of Ferrybridge about odour from site. ",null,null,"Unsubstantiated",null,null,"Discussed at morning meeting, investigated and found to be unsubstantiated."]
["2021-06-10","External complaint from the local community group about RDF delivery vehicle with nets in a poor condition and plastic waste hanging from the sides of the trailers.",null,null,"Unsubstantiated",null,null,"Discussed at morning meeting, fuel supplier and haulier informed."]
["2021-06-18","External complaint about odour received directly from the Environment Agency.",null,null,"Unsubstantiated",null,null,"Discussed at morning meeting, investigated and found to be unsubstantiated."]
["2021-07-14","External complaint from local resident about poor condition of netting on RDF delivery vehicle. ",null,null,"Unsubstantiated",null,null,"Discussed at morning meeting, fuel supplier and haulier informed, fleet survey recommended."]
["2021-09-03","External complaint about waste streamers hanging off RDF delivery vehicles.",null,null,"Unsubstantiated",null,null,"Discussed at morning meeting, no specific vehicle identified but companies notified."]
["2021-11-16","External complaint of RDF delivery driver driving through weight restricted area of Ferrybridge. ",null,null,"Substantiated",null,null,"Discussed at daily meeting, fuel supplier notified, driver received 1 month ban."]
[null,null,null,null,"* including whether substantiated by the operator or the EA"]

{"sheet":"Improvements","index":8,"n_rows":39,"n_cols":5,"rows_kept":39,"cut":false,"hidden":false,"merged":[[37,0,37,9],[38,0,47,9],[4,0,4,9],[5,0,13,9],[15,0,15,9],[16,0,24,9],[26,0,26,9],[27,0,35,9]]}
[{"$f":"+'Cover Page'!$B$29","v":"Annual Performance Report 2021"},null,null,null,{"$f":"+'Cover Page'!$B$33","v":"enfinium Ferrybridge 2 Ltd"}]
[]
["Summary of Plant Improvements"]
[]
["Summary of any efficiency improvements that have been completed within the year."]
["Energy efficient light sensors installed in the FGT area."]
[]
[]
[]
[]
[]
[]
[]
[]
[]
["Summary of any permit improvement conditions that have been completed within the year and the resulting environmental benefits."]
["IC2 - Particle size distribution.\nIC4 - Residence time and temperature.\nIC6 - Component metals assessment.\nIC7a and IC7b - QAL1, QAL2, QAL3."]
[]
[]
[]
[]
[]
[]
[]
[]
[]
["Summary of any changes to the plant or operating techniques which required a variation to the permit and a summary of the resulting environmental impact."]
["None"]
[]
[]
[]
[]
[]
[]
[]
[]
[]
["Summary of any other improvements made to the plant or planned to be made and a summary of the resulting environmental benefits."]
["None"]

{"sheet":"Public Liasion","index":9,"n_rows":29,"n_cols":5,"rows_kept":29,"cut":false,"hidden":false,"merged":[[23,0,24,1],[23,2,24,9],[25,0,26,1],[25,2,26,9],[28,0,28,9],[17,0,18,1],[17,2,18,9],[19,0,20,1],[19,2,20,9],[21,0,22,1],[21,2,22,9],[16,0,16,1],[16,2,16,9],[5,0,5,1],[5,2,5,9],[6,0,7,1],[6,2,7,9],[8,0,9,1],[8,2,9,9],[10,0,11,1],[10,2,11,9],[12,0,13,1],[12,2,13,9],[15,0,15,9]]}
[{"$f":"+'Cover Page'!$B$29","v":"Annual Performance Report 2021"},null,null,null,{"$f":"+'Cover Page'!$B$33","v":"enfinium Ferrybridge 2 Ltd"}]
[]
["Details of Public & Stakeholder Liasion"]
[]
["Summary of events held during the reporting year."]
["Date",null,"Description"]
["n/a",null,"All community liaison group meetings cancelled due to impacts of covid-19."]
[]
[]
[]
[]
[]
[]
[]
[]
["List of events planned for next year"]
["Date",null,"Description"]
["April, July,\nOctober 2022, January 2023",null,"Quarterly Community Liaison Group meetings (dependant on covid-19 restrictions)"]
[]
["April, October 2022",null,"Transport Liaison Group Meetings (dependant on covid-19 restrictions)"]
[]
[]
[]
[]
[]
[]
[]
[]
["If you wish to be involved in the public liasion programme, please contact John Warren, Environmental Officer, john.warren@multifuelenergy.com"]

{"sheet":"Residue Quality ","index":10,"n_rows":36,"n_cols":6,"rows_kept":36,"cut":false,"hidden":false,"merged":[[35,0,40,6],[32,3,32,4],[34,0,34,6],[27,0,28,1],[29,0,29,1],[30,0,30,1],[31,0,31,1],[32,0,32,1],[29,3,29,4],[30,3,30,4],[29,5,29,6],[30,5,30,6],[31,5,31,6],[32,5,32,6],[20,0,21,1],[20,2,21,6],[22,0,23,1],[22,2,23,6],[31,3,31,4],[27,2,28,2],[28,3,28,4],[28,5,28,6],[27,3,27,6],[26,0,26,6],[5,0,6,6],[7,0,8,6],[9,0,10,6],[14,0,15,1],[14,2,15,6],[16,0,17,1],[16,2,17,6],[18,0,19,1],[18,2,19,6],[12,0,12,6],[13,0,13,1],[13,2,13,6]]}
[{"$f":"+'Cover Page'!$B$29","v":"Annual Performance Report 2021"},null,null,null,{"$f":"+'Cover Page'!$B$33","v":"enfinium Ferrybridge 2 Ltd"}]
[]
["Residue Quality Monitoring Requirements"]
[]
["Summary of monitoring undertaken and compliance"]
["Monthly IBA hazard assessments and annual full hazardous property assessments, quarterly IBA and APC residue compliance monitoring, annual characterisation of IBA and APC residue. All carried out and reported by WRc."]
[]
[]
[]
[]
[]
[]
["Commentary on any specific events"]
["Date & Event",null,"Description"]
["October 2021 - IBA and APC Annual Characterisation Report",null,"Results of the annual characterisation of IBA and APC residues from Ferrybridge 2, including a full hazardous property assessment of IBA as required by the ESA Protocol 2018."]
[]
[]
[]
[]
[]
[]
[]
[]
[]
[]
[]
["Residue Quality Monitoring Results"]
["Parameter (unit) ",null,"Limit","Normal Operation "]
[null,null,null,"Bottom ash  ",null,"APC Residues"]
["Loss on Ignition (%)",null,"<5%",3.3]
["ToC (%)",null,"<3%",0.4]
["No. of Assessments Undertaken",null,"---",4,null,4]
["No. of Hazardous Assessments",null,"---",24]
[]
["Comments :"]
["Loss on Ignition and ToC results taken from October 2021 report. \nNo. of hazardous assessments over 2 lines."]

{"sheet":"Water","index":11,"n_rows":22,"n_cols":10,"rows_kept":22,"cut":false,"hidden":false,"merged":[[27,0,27,2],[27,3,27,5],[24,0,24,2],[24,3,24,5],[25,0,25,2],[25,3,25,5],[26,0,26,2],[26,3,26,5],[21,0,21,2],[21,3,21,5],[22,0,22,2],[22,3,22,5],[23,0,23,2],[23,3,23,5],[19,0,19,9],[20,0,20,2],[20,3,20,5],[12,0,13,1],[12,2,13,9],[14,0,15,1],[14,2,15,9],[16,0,17,1],[16,2,17,9],[5,0,6,9],[7,0,8,9],[10,0,10,9],[11,0,11,1],[11,2,11,9]]}
[{"$f":"+'Cover Page'!$B$29","v":"Annual Performance Report 2021"},null,null,null,{"$f":"+'Cover Page'!$B$33","v":"enfinium Ferrybridge 2 Ltd"}]
[]
["Emissions to Water"]
[]
["Summary of monitoring undertaken and compliance"]
["Frequent sampling and analysis of attenuation pond water, tested for pH and conductivity, odour and appearance prior to discharge to Fryston Beck. "]
[]
[]
[]
[]
["Commentary on any specific events"]
["Date & Event",null,"Description"]
[]
[]
[]
[]
[]
[]
[]
["Emissions to Water / Sewer"]
["Parameter",null,null,"Monitoring Frequency",null,null,"Limit","Target","Max.","Average"]
["No parameters set in permit",null,null,"None",null,null,"None","None","None","None"]

{"sheet":"Air (periodic)","index":12,"n_rows":74,"n_cols":10,"rows_kept":74,"cut":false,"hidden":false,"merged":[[13,3,13,4],[14,3,14,4],[15,3,15,4],[16,3,16,4],[17,3,17,4],[18,3,18,4],[27,3,27,4],[33,3,33,4],[19,3,19,4],[20,3,20,4],[21,3,21,4],[22,3,22,4],[23,3,23,4],[24,3,24,4],[31,3,31,4],[25,3,25,4],[26,3,26,4],[28,3,28,4],[20,0,20,1],[21,0,21,1],[34,3,34,4],[35,3,35,4],[33,0,33,1],[34,0,34,1],[35,0,35,1],[36,0,36,1],[24,0,24,1],[32,3,32,4],[16,0,16,1],[17,0,17,1],[18,0,18,1],[13,0,13,1],[14,0,14,1],[15,0,15,1],[39,0,40,6],[25,0,25,1],[26,0,26,1],[22,0,22,1],[23,0,23,1],[37,0,37,1],[27,0,27,1],[28,0,28,1],[29,0,29,1],[30,0,30,1],[31,0,31,1],[32,0,32,1],[37,3,37,4],[29,3,29,4],[30,3,30,4],[36,3,36,4],[38,0,38,6],[19,0,19,1],[5,9,8,12],[9,9,11,12],[8,0,8,6],[5,0,6,6],[11,0,11,1],[12,0,12,1],[11,3,11,4],[12,3,12,4],[9,0,10,1],[9,5,9,6],[9,3,10,4],[9,2,10,2],[45,0,45,1],[45,3,45,4],[46,0,46,1],[46,3,46,4],[47,0,47,1],[47,3,47,4],[42,0,42,6],[43,0,44,1],[43,2,44,2],[43,3,44,4],[43,5,43,6],[51,0,51,1],[51,3,51,4],[52,0,52,1],[52,3,52,4],[53,0,53,1],[53,3,53,4],[48,0,48,1],[48,3,48,4],[49,0,49,1],[49,3,49,4],[50,0,50,1],[50,3,50,4],[57,0,57,1],[57,3,57,4],[58,0,58,1],[58,3,58,4],[59,0,59,1],[59,3,59,4],[54,0,54,1],[54,3,54,4],[55,0,55,1],[55,3,55,4],[56,0,56,1],[56,3,56,4],[63,0,63,1],[63,3,63,4],[64,0,64,1],[64,3,64,4],[65,0,65,1],[65,3,65,4],[60,0,60,1],[60,3,60,4],[61,0,61,1],[61,3,61,4],[62,0,62,1],[62,3,62,4],[72,0,72,6],[73,0,74,6],[69,0,69,1],[69,3,69,4],[70,0,70,1],[70,3,70,4],[71,0,71,1],[71,3,71,4],[66,0,66,1],[66,3,66,4],[67,0,67,1],[67,3,67,4],[68,0,68,1],[68,3,68,4]]}
[{"$f":"+'Cover Page'!$B$29","v":"Annual Performance Report 2021"},null,null,null,{"$f":"+'Cover Page'!$B$33","v":"enfinium Ferrybridge 2 Ltd"}]
[]
["Emissions to Air (periodically monitored)"]
[]
["Summary of monitoring undertaken, standards used and compliance",null,null,null,null,null,null,null,null,"Notes:"]
["Bi-annual monitoring undertaken in June 2021 and September/October 2021. Standards used include EN 14385, MID 14385, EN 1948, ISO 11338, ISO 15713, EN 14789, TGN M22 and EN 16911-1 (MID). All parameters tested demonstrate compliance against the relevant emission limit values.",null,null,null,null,null,null,null,null,"Template may require adjustment for any bespoke monitoring requirements of permit. "]
[]
[]
["Results of emissions to air that are periodically monitored"]
["Substance",null,"Ref. Period","Emission Limit Value",null,"Average",null,null,null,"User to add additional tables as necessary, depending on whether quarterly or bi-annual reporting is required for the compliance year"]
[null,null,null,null,null,"A1","A2"]
["Hydrogen fluoride",null,"1 hr","2 mg/m3",null,"< 0.02","< 0.04"]
["Cd and Th and their compounds",null,"6-8hrs","0.05 mg/m3",null,1E-3,1E-3]
["Hg and its compounds",null,"6-8hrs","0.05 mg/m3",null,3.0000000000000001E-3,5.0000000000000001E-3]
["Sb, As, Pb, Cr, Co, Cu, Mn, Ni, V and their compounds",null,"6-8hrs","0.5 mg/m3",null,1.4E-2,0.02]
["Dioxins & Furans (I-TEQ)",null,"6-8hrs","0.1 ng/m3",null,0.01,8.9999999999999993E-3]
["PCBs (WHO-TEQ Humans / Mammals)",null,"6-8hrs","None set ng/m3",null,1.0499999999999999E-3,8.0000000000000004E-4]
["PCBs (WHO-TEQ Fish)",null,"6-8hrs","None set ng/m3",null,5.0000000000000002E-5,4.0000000000000003E-5]
["PCBs (WHO-TEQ Birds)",null,"6-8hrs","None set ng/m3",null,2.7699999999999999E-3,1.9300000000000001E-3]
["Dioxins & Furans (WHO-TEQ Humans / Mammals)",null,"6-8hrs","None set ng/m3",null,8.9999999999999993E-3,8.0000000000000002E-3]
["Dioxins & Furans (WHO-TEQ Fish)",null,"6-8hrs","None set ng/m3",null,0.01,8.9999999999999993E-3]
["Dioxins & Furans (WHO-TEQ Birds)",null,"6-8hrs","None set ng/m3",null,0.02,1.7000000000000001E-2]
["Anthanthrene",null,"6-8hrs","None set µg/m3",null,"< 0.0011","< 0.0012"]
["Benzo(a)anthracene",null,"6-8hrs","None set µg/m3",null,"< 0.0011","< 0.0012"]
["Benzo(a)pyrene",null,"6-8hrs","None set µg/m3",null,"< 0.0011","< 0.0012"]
["Benzo(b)fluoranthene",null,"6-8hrs","None set µg/m3",null,"< 0.0011","< 0.0012"]
["Benzo(b)naptho(2,1-d) thiophene",null,"6-8hrs","None set µg/m3",null,"< 0.0011",2.0999999999999999E-3]
["Benzo(c)phenanthrene",null,"6-8hrs","None set µg/m3",null,"< 0.0011","< 0.0012"]
["Benzo(ghi)perylene",null,"6-8hrs","None set µg/m3",null,"< 0.0011","< 0.0012"]
["Benzo(k)fluoranthene",null,"6-8hrs","None set µg/m3",null,"< 0.0011","< 0.0012"]
["Cholanthrene",null,"6-8hrs","None set µg/m3",null,"< 0.0011","< 0.0012"]
["Chrysene",null,"6-8hrs","None set µg/m3",null,"< 0.0011",1.1999999999999999E-3]
["Cyclopenta(cd)pyrene",null,"6-8hrs","None set µg/m3",null,"< 0.0011","< 0.0012"]
["Dibenzo(ai)pyrene",null,"6-8hrs","None set µg/m3",null,"< 0.0011","< 0.0012"]
["Dibenzo(ah)anthracene",null,"6-8hrs","None set µg/m3",null,"< 0.0011","< 0.0012"]
["Fluoranthene",null,"6-8hrs","None set µg/m3",null,5.4999999999999997E-3,6.8999999999999999E-3]
["Indeno(123-cd) pyrene",null,"6-8hrs","None set µg/m3",null,"< 0.0011","< 0.0012"]
["Naphthalene",null,"6-8hrs","None set µg/m3",null,0.16400000000000001,0.1411]
["Comments :"]
["Testing carried out between 3rd and 10th June 2021."]
[]
[]
["Results of emissions to air that are periodically monitored"]
["Substance",null,"Ref. Period","Emission Limit Value",null,"Average"]
[null,null,null,null,null,"A1","A2"]
["Hydrogen fluoride",null,"1 hr","2 mg/m3",null,"< 0.03","< 0.03"]
["Cd and Th and their compounds",null,"6-8hrs","0.05 mg/m3",null,1E-3,"< 0.0005"]
["Hg and its compounds",null,"6-8hrs","0.05 mg/m3",null,4.0000000000000001E-3,1.4E-2]
["Sb, As, Pb, Cr, Co, Cu, Mn, Ni, V and their compounds",null,"6-8hrs","0.5 mg/m3",null,1.4999999999999999E-2,8.9999999999999993E-3]
["Dioxins & Furans (I-TEQ)",null,"6-8hrs","0.1 ng/m3",null,1.6E-2,1.2E-2]
["PCBs (WHO-TEQ Humans / Mammals)",null,"6-8hrs","None set ng/m3",null,9.2000000000000003E-4,9.3000000000000005E-4]
["PCBs (WHO-TEQ Fish)",null,"6-8hrs","None set ng/m3",null,4.0000000000000003E-5,4.0000000000000003E-5]
["PCBs (WHO-TEQ Birds)",null,"6-8hrs","None set ng/m3",null,1.82E-3,1.8400000000000001E-3]
["Dioxins & Furans (WHO-TEQ Humans / Mammals)",null,"6-8hrs","None set ng/m3",null,1.6E-2,1.2E-2]
["Dioxins & Furans (WHO-TEQ Fish)",null,"6-8hrs","None set ng/m3",null,1.6E-2,1.2E-2]
["Dioxins & Furans (WHO-TEQ Birds)",null,"6-8hrs","None set ng/m3",null,2.3E-2,1.7000000000000001E-2]
["Anthanthrene",null,"6-8hrs","None set µg/m3",null,"< 0.001","< 0.001"]
["Benzo(a)anthracene",null,"6-8hrs","None set µg/m3",null,4.3999999999999997E-2,3.7999999999999999E-2]
["Benzo(a)pyrene",null,"6-8hrs","None set µg/m3",null,5.0000000000000001E-3,4.0000000000000001E-3]
["Benzo(b)fluoranthene",null,"6-8hrs","None set µg/m3",null,0.01,8.9999999999999993E-3]
["Benzo(b)naptho(2,1-d) thiophene",null,"6-8hrs","None set µg/m3",null,1.2E-2,8.9999999999999993E-3]
["Benzo(c)phenanthrene",null,"6-8hrs","None set µg/m3",null,1.0999999999999999E-2,8.9999999999999993E-3]
["Benzo(ghi)perylene",null,"6-8hrs","None set µg/m3",null,3.0000000000000001E-3,2E-3]
["Benzo(k)fluoranthene",null,"6-8hrs","None set µg/m3",null,5.0000000000000001E-3,5.0000000000000001E-3]
["Cholanthrene",null,"6-8hrs","None set µg/m3",null,"< 0.001","< 0.001"]
["Chrysene",null,"6-8hrs","None set µg/m3",null,3.9E-2,3.3000000000000002E-2]
["Cyclopenta(cd)pyrene",null,"6-8hrs","None set µg/m3",null,3.0000000000000001E-3,2E-3]
["Dibenzo(ai)pyrene",null,"6-8hrs","None set µg/m3",null,"< 0.001","< 0.001"]
["Dibenzo(ah)anthracene",null,"6-8hrs","None set µg/m3",null,"< 0.001","< 0.001"]
["Fluoranthene",null,"6-8hrs","None set µg/m3",null,0.99099999999999999,0.88100000000000001]
["Indeno(123-cd) pyrene",null,"6-8hrs","None set µg/m3",null,2E-3,1E-3]
["Naphthalene",null,"6-8hrs","None set µg/m3",null,1.22,0.71]
["Comments :"]
["Testing carried out between 30th September and 6th October 2021."]

{"sheet":"Air (CEMS)","index":13,"n_rows":26,"n_cols":10,"rows_kept":26,"cut":false,"hidden":false,"merged":[[26,0,26,6],[11,0,12,0],[5,0,6,6],[8,0,8,6],[9,0,10,0],[9,2,10,2],[9,1,10,1],[9,3,9,4],[9,5,9,6],[13,0,14,0],[15,0,16,0],[17,0,18,0],[19,0,20,0],[21,0,22,0]]}
[{"$f":"+'Cover Page'!$B$29","v":"Annual Performance Report 2021"}]
[]
["Emissions to Air (continously monitored)"]
[null,null,null,null,null,null,null,null,null,"Notes:"]
["Summary of monitoring undertaken, standards used and compliance",null,null,null,null,null,null,null,null,"Template may require adjustment for any bespoke monitoring requirements of permit"]
["Continuous emissions monitoring of Oxides of Nitrogen, Particulates, Total Organic Carbon, Hydrogen Chloride, Sulphur Dioxide, Carbon Monoxide and Ammonia to EN14181. Instruments used PCME QAL 181 and Environement SA MIR FT multigas analyser. All results demonstrate 100% compliance with the emission limit values."]
[]
[]
["Results of emissions to air that are continuously monitored"]
["Substance","Reference Period","Emission Limit Value","A1",null,"A2"]
[null,null,null,"Max.","Avg.","Max.","Avg."]
["Oxides of nitrogen","Daily mean","180 mg/m3 ",{"$f":"NOx!O19","v":178},{"$f":"NOx!N19","v":167.97499999999999},{"$f":"NOx!O34","v":172},{"$f":"NOx!N34","v":168.92833333333334}]
[null,"½ hourly mean","400 mg/m3 ",{"$f":"NOx!M19","v":791},{"$f":"NOx!L19","v":168},{"$f":"NOx!M34","v":244},{"$f":"NOx!L34","v":168.91666666666666}]
["Particulates","Daily mean","10 mg/m3",{"$f":"Particulates!O19","v":13},{"$f":"Particulates!N19","v":3.2550000000000003},{"$f":"Particulates!O34","v":6},{"$f":"Particulates!N34","v":1.8383333333333332}]
[null,"½ hourly mean","30 mg/m3 ",{"$f":"Particulates!M19","v":99},{"$f":"Particulates!L19","v":3.25},{"$f":"Particulates!M34","v":129},{"$f":"Particulates!L34","v":1.75}]
["Total Organic Carbon ","Daily mean","10 mg/m3 ",{"$f":"TOC!O19","v":1},{"$f":"TOC!N19","v":0.29833333333333328},{"$f":"TOC!O34","v":1},{"$f":"TOC!N34","v":0.3775}]
[null,"½ hourly mean","20 mg/m3 ",{"$f":"TOC!M19","v":3},{"$f":"TOC!L19","v":0},{"$f":"TOC!M34","v":7},{"$f":"TOC!L34","v":0}]
["Hydrogen chloride ","Daily mean","10 mg/m3 ",{"$f":"HCl!O19","v":7},{"$f":"HCl!N19","v":4.083333333333333},{"$f":"HCl!O34","v":7},{"$f":"HCl!N34","v":3.9900000000000007}]
[null,"½ hourly mean","60 mg/m3 ",{"$f":"HCl!M19","v":39},{"$f":"HCl!L19","v":4.083333333333333},{"$f":"HCl!M34","v":14},{"$f":"HCl!L34","v":4}]
["Sulphur dioxide","Daily mean","50 mg/m3 ",{"$f":"'SO2'!O19","v":2},{"$f":"'SO2'!N19","v":0.32416666666666666},{"$f":"'SO2'!O34","v":4},{"$f":"'SO2'!N34","v":0.91249999999999998}]
[null,"½ hourly mean","200 mg/m3 ",{"$f":"'SO2'!M19","v":51},{"$f":"'SO2'!L19","v":0.16666666666666666},{"$f":"'SO2'!M34","v":19},{"$f":"'SO2'!L34","v":0.83333333333333337}]
["Carbon monoxide ","Daily mean","50 mg/m3 ",{"$f":"'CO 95% 10 min'!Q19","v":6},{"$f":"'CO 95% 10 min'!P19","v":1.7800000000000002},{"$f":"'CO 95% 10 min'!Q34","v":6},{"$f":"'CO 95% 10 min'!P34","v":1.7925000000000002}]
[null,"95%ile 10-min avg *","150 mg/m3 *",{"$f":"'CO 95% 10 min'!M19","v":6.083333333333333},{"$f":"'CO 95% 10 min'!N19","v":1.8333333333333333},{"$f":"'CO 95% 10 min'!M34","v":6},{"$f":"'CO 95% 10 min'!N34","v":1.8333333333333333}]
[" Ammonia","Daily mean","No limit set",{"$f":"'NH3'!O19","v":2},{"$f":"'NH3'!N19","v":9.4166666666666676E-2},{"$f":"'NH3'!O34","v":0},{"$f":"'NH3'!N34","v":8.3333333333333332E-3}]
["* = delete or amend as appropriate","½ hourly mean","30 mg/m3 ",{"$f":"'NH3'!M19","v":11},{"$f":"'NH3'!L19","v":0},{"$f":"'NH3'!M34","v":3},{"$f":"'NH3'!L34","v":0}]
["Comments :"]

{"sheet":"NOx","index":14,"n_rows":48,"n_cols":17,"rows_kept":48,"cut":false,"hidden":false,"merged":[[21,9,33,9],[47,0,47,6],[48,0,51,6],[3,16,7,18],[9,16,11,18],[12,16,15,18],[4,1,4,3],[4,4,4,6],[4,9,4,14],[6,9,18,9]]}
[{"$f":"+'Cover Page'!$B$29","v":"Annual Performance Report 2021"},null,null,null,{"$f":"+'Cover Page'!$B$33","v":"enfinium Ferrybridge 2 Ltd"}]
[]
["Monitoring of Oxides of Nitrogen emissions",null,null,"Whole Installation",null,null,"See  Notes in Cell Q3",null,null,{"$f":"+A3","v":"Monitoring of Oxides of Nitrogen emissions"},null,null,null,"Per Combustion Line",null,null,"Notes:"]
[null,null,null,null,null,null,null,null,null,null,null,null,null,null,null,null,"User to add logic to complete Whole installation, Table A5:G18. From the data in Per Combustion Line, Table J6:O79, subject to No. of lines installed"]
["mg/Nm3","1/2 Hourly Reference Periods",null,null,"Daily Reference Periods"]
[{"$f":"+'Cover Page'!C39","v":2021},"1/2 hourly NOx ELV","Monthly 1/2 hourly mean","Highest 1/2 hourly maximum","Daily NOx ELV","Monthly daily mean","Highest daily maximum",null,null,{"$f":"+A6","v":2021},"mg/Nm3","Monthly 1/2 hourly mean","Monthly 1/2 hourly maximum","Monthly daily mean","Monthly daily maximum"]
["Jan",400,{"$f":"AVERAGE(L7,L22)","v":164.5},{"$f":"MAX(M7,M22)","v":202},180,{"$f":"AVERAGE(N7,N22)","v":164.04500000000002},{"$f":"MAX(O7,O22)","v":171},null,null,"A1","Jan",159,187,158.52000000000001,169]
["Feb",400,{"$f":"AVERAGE(L8,L23)","v":165},{"$f":"MAX(M8,M23)","v":211},180,{"$f":"AVERAGE(N8,N23)","v":165.10500000000002},{"$f":"MAX(O8,O23)","v":170},null,null,null,"Feb",161,211,161.4,167]
["Mar",400,167.5,192,180,167.07999999999998,171,null,null,null,"Mar",165,192,164.63,171,null,"Whole Installation table A5:G18:"]
["Apr",400,170,203,180,169.82499999999999,172,null,null,null,"Apr",170,199,169.86,171,null,"Mean: for 1/2 hourly and daily periods calculate mean of values across all operational combustion lines for the month"]
["May",400,170.5,791,180,170.58500000000001,178,null,null,null,"May",171,791,170.71,178]
["Jun",400,170,219,180,169.935,171,null,null,null,"Jun",170,199,170.17,171]
["Jul",400,169,196,180,169.065,171,null,null,null,"Jul",170,196,170,171,null,"Maximum: for 1/2 hourly and daily periods use the highest value across all operational combustion lines for the month"]
["Aug",400,169,196,180,169.26999999999998,171,null,null,null,"Aug",170,196,170.13,171]
["Sep",400,168,211,180,168.11500000000001,174,null,null,null,"Sep",170,211,170.28,174]
["Oct",400,169,217,180,168.89999999999998,171,null,null,null,"Oct",170,201,169.88,171]
["Nov",400,169.5,221,180,169.60500000000002,171,null,null,null,"Nov",170,195,169.8,171]
["Dec",400,169.5,244,180,169.89,174,null,null,null,"Dec",170,209,170.32,174]
[null,null,null,null,null,null,null,null,null,null,"Annual",{"$f":"AVERAGE(L7:L18)","v":168},{"$f":"MAX(M7:M18)","v":791},{"$f":"AVERAGE(N7:N18)","v":167.97499999999999},{"$f":"MAX(O7:O18)","v":178}]
[]
[null,null,null,null,null,null,null,null,null,{"$f":"+A6","v":2021},"mg/Nm3","Monthly 1/2 hourly mean","Monthly 1/2 hourly maximum","Monthly daily mean","Monthly daily maximum"]
[null,null,null,null,null,null,null,null,null,"A2","Jan",170,202,169.57,171]
[null,null,null,null,null,null,null,null,null,null,"Feb",169,190,168.81,170]
[null,null,null,null,null,null,null,null,null,null,"Mar",170,192,169.53,171]
[null,null,null,null,null,null,null,null,null,null,"Apr",170,203,169.79,172]
[null,null,null,null,null,null,null,null,null,null,"May",170,199,170.46,71]
[null,null,null,null,null,null,null,null,null,null,"Jun",170,219,169.7,171]
[null,null,null,null,null,null,null,null,null,null,"Jul",168,196,168.13,170]
[null,null,null,null,null,null,null,null,null,null,"Aug",168,196,168.41,171]
[null,null,null,null,null,null,null,null,null,null,"Sep",166,195,165.95,171]
[null,null,null,null,null,null,null,null,null,null,"Oct",168,217,167.92,171]
[null,null,null,null,null,null,null,null,null,null,"Nov",169,221,169.41,170]
[null,null,null,null,null,null,null,null,null,null,"Dec",169,244,169.46,171]
[null,null,null,null,null,null,null,null,null,null,"Annual",{"$f":"AVERAGE(L22:L33)","v":168.91666666666666},{"$f":"MAX(M22:M33)","v":244},{"$f":"AVERAGE(N22:N33)","v":168.92833333333334},{"$f":"MAX(O22:O33)","v":172}]
[]
[]
[]
[]
[]
[]
[]
[]
[]
[]
[]
[]
[]
["Comments :"]

{"sheet":"SO2","index":15,"n_rows":48,"n_cols":17,"rows_kept":48,"cut":false,"hidden":false,"merged":[[21,9,33,9],[47,0,47,6],[48,0,51,6],[3,16,7,18],[9,16,11,18],[12,16,15,18],[4,1,4,3],[4,4,4,6],[4,9,4,14],[6,9,18,9]]}
[{"$f":"+'Cover Page'!$B$29","v":"Annual Performance Report 2021"},null,null,null,{"$f":"+'Cover Page'!$B$33","v":"enfinium Ferrybridge 2 Ltd"}]
[]
["Monitoring of Sulphur dioxide emissions",null,null,"Whole Installation",null,null,"See  Notes in Cell Q3",null,null,{"$f":"+A3","v":"Monitoring of Sulphur dioxide emissions"},null,null,null,"Per Combustion Line",null,null,"Notes:"]
[null,null,null,null,null,null,null,null,null,null,null,null,null,null,null,null,"User to add logic to complete Whole installation, Table A5:G18. From the data in Per Combustion Line, Table J6:O79, subject to No. of lines installed"]
["mg/Nm3","1/2 Hourly Reference Periods",null,null,"Daily Reference Periods"]
[{"$f":"+'Cover Page'!C39","v":2021},"1/2 hourly SO2 ELV","Monthly 1/2 hourly mean","Highest 1/2 hourly maximum","Daily SO2 ELV","Monthly daily mean","Highest daily maximum",null,null,{"$f":"+A6","v":2021},"mg/Nm3","Monthly 1/2 hourly mean","Monthly 1/2 hourly maximum","Monthly daily mean","Monthly daily maximum"]
["Jan",200,{"$f":"AVERAGE(L7,L22)","v":0.5},{"$f":"MAX(M7,M22)","v":5},50,{"$f":"AVERAGE(N7,N22)","v":0.27},0,null,null,"A1","Jan",1,3,0.53,1]
["Feb",200,{"$f":"AVERAGE(L8,L23)","v":1},{"$f":"MAX(M8,M23)","v":51},50,{"$f":"AVERAGE(N8,N23)","v":1.1600000000000001},1,null,null,null,"Feb",1,51,1,2]
["Mar",200,0.5,12,50,0.71500000000000008,2,null,null,null,"Mar",0,12,0.38,1,null,"Whole Installation table A5:G18:"]
["Apr",200,0.5,6,50,0.58499999999999996,3,null,null,null,"Apr",0,6,0.31,1,null,"Mean: for 1/2 hourly and daily periods calculate mean of values across all operational combustion lines for the month"]
["May",200,1,24,50,1.2250000000000001,4,null,null,null,"May",0,24,0.24,2]
["Jun",200,1,9,50,0.98499999999999999,5,null,null,null,"Jun",0,9,7.0000000000000007E-2,0]
["Jul",200,0.5,38,50,0.64500000000000002,6,null,null,null,"Jul",0,38,0.26,1,null,"Maximum: for 1/2 hourly and daily periods use the highest value across all operational combustion lines for the month"]
["Aug",200,0.5,31,50,0.48499999999999999,7,null,null,null,"Aug",0,31,0.11,1]
["Sep",200,0,19,50,0.28500000000000003,8,null,null,null,"Sep",0,7,0.11,1]
["Oct",200,0.5,14,50,0.53,9,null,null,null,"Oct",0,6,0.47,1]
["Nov",200,0,5,50,0.33499999999999996,10,null,null,null,"Nov",0,5,0.37,1]
["Dec",200,0,5,50,0.19999999999999998,11,null,null,null,"Dec",0,3,0.04,0]
[null,null,null,null,null,null,null,null,null,null,"Annual",{"$f":"AVERAGE(L7:L18)","v":0.16666666666666666},{"$f":"MAX(M7:M18)","v":51},{"$f":"AVERAGE(N7:N18)","v":0.32416666666666666},{"$f":"MAX(O7:O18)","v":2}]
[]
[null,null,null,null,null,null,null,null,null,{"$f":"+A6","v":2021},"mg/Nm3","Monthly 1/2 hourly mean","Monthly 1/2 hourly maximum","Monthly daily mean","Monthly daily maximum"]
[null,null,null,null,null,null,null,null,null,"A2","Jan",0,5,0.01,0]
[null,null,null,null,null,null,null,null,null,null,"Feb",1,9,1.32,4]
[null,null,null,null,null,null,null,null,null,null,"Mar",1,7,1.05,3]
[null,null,null,null,null,null,null,null,null,null,"Apr",1,3,0.86,2]
[null,null,null,null,null,null,null,null,null,null,"May",2,6,2.21,3]
[null,null,null,null,null,null,null,null,null,null,"Jun",2,7,1.9,3]
[null,null,null,null,null,null,null,null,null,null,"Jul",1,15,1.03,2]
[null,null,null,null,null,null,null,null,null,null,"Aug",1,7,0.86,2]
[null,null,null,null,null,null,null,null,null,null,"Sep",0,19,0.46,1]
[null,null,null,null,null,null,null,null,null,null,"Oct",1,14,0.59,1]
[null,null,null,null,null,null,null,null,null,null,"Nov",0,4,0.3,1]
[null,null,null,null,null,null,null,null,null,null,"Dec",0,5,0.36,2]
[null,null,null,null,null,null,null,null,null,null,"Annual",{"$f":"AVERAGE(L22:L33)","v":0.83333333333333337},{"$f":"MAX(M22:M33)","v":19},{"$f":"AVERAGE(N22:N33)","v":0.91249999999999998},{"$f":"MAX(O22:O33)","v":4}]
[]
[]
[]
[]
[]
[]
[]
[]
[]
[]
[]
[]
[]
["Comments :"]

{"sheet":"HCl","index":16,"n_rows":48,"n_cols":17,"rows_kept":48,"cut":false,"hidden":false,"merged":[[12,16,15,18],[4,9,4,14],[4,1,4,3],[4,4,4,6],[48,0,51,6],[47,0,47,6],[6,9,18,9],[21,9,33,9],[3,16,7,18],[9,16,11,18]]}
[{"$f":"+'Cover Page'!$B$29","v":"Annual Performance Report 2021"},null,null,null,{"$f":"+'Cover Page'!$B$33","v":"enfinium Ferrybridge 2 Ltd"}]
[]
["Monitoring of Hydrogen Chloride emissions",null,null,"Whole Installation",null,null,"See  Notes in Cell Q3",null,null,{"$f":"+A3","v":"Monitoring of Hydrogen Chloride emissions"},null,null,null,"Per Combustion Line",null,null,"Notes:"]
[null,null,null,null,null,null,null,null,null,null,null,null,null,null,null,null,"User to add logic to complete Whole installation, Table A5:G18. From the data in Per Combustion Line, Table J6:O79, subject to No. of lines installed"]
["mg/Nm3","1/2 Hourly Reference Periods",null,null,"Daily Reference Periods"]
[{"$f":"+'Cover Page'!C39","v":2021},"1/2 hourly HCl ELV","Monthly 1/2 hourly mean","Highest 1/2 hourly maximum","Daily HCl ELV","Monthly daily mean","Highest daily maximum",null,null,{"$f":"+A6","v":2021},"mg/Nm3","Monthly 1/2 hourly mean","Monthly 1/2 hourly maximum","Monthly daily mean","Monthly daily maximum"]
["Jan",60,{"$f":"AVERAGE(L7,L22)","v":5},{"$f":"MAX(M7,M22)","v":10},10,{"$f":"AVERAGE(N7,N22)","v":4.68},{"$f":"MAX(O7,O22)","v":6},null,null,"A1","Jan",5,9,4.79,6]
["Feb",60,{"$f":"AVERAGE(L8,L23)","v":4},{"$f":"MAX(M8,M23)","v":26},10,3.96,{"$f":"MAX(O8,O23)","v":6},null,null,null,"Feb",4,26,4.3,6]
["Mar",60,4.5,10,10,4.42,7,null,null,null,"Mar",5,10,5,7,null,"Whole Installation table A5:G18:"]
["Apr",60,3.5,10,10,3.58,5,null,null,null,"Apr",4,10,3.68,5,null,"Mean: for 1/2 hourly and daily periods calculate mean of values across all operational combustion lines for the month"]
["May",60,4,39,10,3.8899999999999997,6,null,null,null,"May",4,39,4.18,5]
["Jun",60,4,10,10,3.8650000000000002,6,null,null,null,"Jun",4,10,3.94,6]
["Jul",60,3.5,19,10,3.2250000000000001,4,null,null,null,"Jul",4,19,3.58,4,null,"Maximum: for 1/2 hourly and daily periods use the highest value across all operational combustion lines for the month"]
["Aug",60,3,21,10,3.3849999999999998,4,null,null,null,"Aug",3,21,3.49,4]
["Sep",60,3.5,14,10,3.49,5,null,null,null,"Sep",3,9,3.24,4]
["Oct",60,5,14,10,5.26,7,null,null,null,"Oct",5,10,5.35,7]
["Nov",60,4,11,10,4.07,6,null,null,null,"Nov",4,8,3.69,4]
["Dec",60,4.5,11,10,4.6150000000000002,7,null,null,null,"Dec",4,7,3.76,5]
[null,null,null,null,null,null,null,null,null,null,"Annual",{"$f":"AVERAGE(L7:L18)","v":4.083333333333333},{"$f":"MAX(M7:M18)","v":39},{"$f":"AVERAGE(N7:N18)","v":4.083333333333333},{"$f":"MAX(O7:O18)","v":7}]
[]
[null,null,null,null,null,null,null,null,null,{"$f":"+A6","v":2021},"mg/Nm3","Monthly 1/2 hourly mean","Monthly 1/2 hourly maximum","Monthly daily mean","Monthly daily maximum"]
[null,null,null,null,null,null,null,null,null,"A2","Jan",5,10,4.57,6]
[null,null,null,null,null,null,null,null,null,null,"Feb",4,7,3.62,6]
[null,null,null,null,null,null,null,null,null,null,"Mar",4,7,3.84,5]
[null,null,null,null,null,null,null,null,null,null,"Apr",3,7,3.48,5]
[null,null,null,null,null,null,null,null,null,null,"May",4,14,3.6,6]
[null,null,null,null,null,null,null,null,null,null,"Jun",4,9,3.79,5]
[null,null,null,null,null,null,null,null,null,null,"Jul",3,8,2.87,4]
[null,null,null,null,null,null,null,null,null,null,"Aug",3,13,3.28,4]
[null,null,null,null,null,null,null,null,null,null,"Sep",4,14,3.74,5]
[null,null,null,null,null,null,null,null,null,null,"Oct",5,14,5.17,7]
[null,null,null,null,null,null,null,null,null,null,"Nov",4,11,4.45,6]
[null,null,null,null,null,null,null,null,null,null,"Dec",5,11,5.47,7]
[null,null,null,null,null,null,null,null,null,null,"Annual",{"$f":"AVERAGE(L22:L33)","v":4},{"$f":"MAX(M22:M33)","v":14},{"$f":"AVERAGE(N22:N33)","v":3.9900000000000007},{"$f":"MAX(O22:O33)","v":7}]
[]
[]
[]
[]
[]
[]
[]
[]
[]
[]
[]
[]
[]
["Comments :"]

{"sheet":"TOC","index":17,"n_rows":48,"n_cols":17,"rows_kept":48,"cut":false,"hidden":false,"merged":[[21,9,33,9],[47,0,47,6],[48,0,51,6],[3,16,7,18],[9,16,11,18],[12,16,15,18],[4,1,4,3],[4,4,4,6],[4,9,4,14],[6,9,18,9]]}
[{"$f":"+'Cover Page'!$B$29","v":"Annual Performance Report 2021"},null,null,null,{"$f":"+'Cover Page'!$B$33","v":"enfinium Ferrybridge 2 Ltd"}]
[]
["Monitoring of Total organic carbon emissions",null,null,"Whole Installation",null,null,"See  Notes in Cell Q3",null,null,{"$f":"+A3","v":"Monitoring of Total organic carbon emissions"},null,null,null,"Per Combustion Line",null,null,"Notes:"]
[null,null,null,null,null,null,null,null,null,null,null,null,null,null,null,null,"User to add logic to complete Whole installation, Table A5:G18. From the data in Per Combustion Line, Table J6:O79, subject to No. of lines installed"]
["mg/Nm3","1/2 Hourly Reference Periods",null,null,"Daily Reference Periods"]
[{"$f":"+'Cover Page'!C39","v":2021},"1/2 hourly TOC ELV","Monthly 1/2 hourly mean","Highest 1/2 hourly maximum","Daily TOC ELV","Monthly daily mean","Highest daily maximum",null,null,{"$f":"+A6","v":2021},"mg/Nm3","Monthly 1/2 hourly mean","Monthly 1/2 hourly maximum","Monthly daily mean","Monthly daily maximum"]
["Jan",20,{"$f":"AVERAGE(L7,L22)","v":0},{"$f":"MAX(M7,M22)","v":3},10,{"$f":"AVERAGE(N7,N22)","v":0.35499999999999998},{"$f":"MAX(O7,O22)","v":1},null,null,"A1","Jan",0,1,0.22,0]
["Feb",20,{"$f":"AVERAGE(L8,L23)","v":0},{"$f":"MAX(M8,M23)","v":1},10,{"$f":"AVERAGE(N8,N23)","v":0.255},{"$f":"MAX(O8,O23)","v":0},null,null,null,"Feb",0,1,0.21,0]
["Mar",20,0,1,10,0.29000000000000004,0,null,null,null,"Mar",0,1,0.24,0,null,"Whole Installation table A5:G18:"]
["Apr",20,0,3,10,0.28000000000000003,0,null,null,null,"Apr",0,3,0.38,0,null,"Mean: for 1/2 hourly and daily periods calculate mean of values across all operational combustion lines for the month"]
["May",20,0,1,10,0.23500000000000001,0,null,null,null,"May",0,1,0.34,0]
["Jun",20,0,1,10,0.43,1,null,null,null,"Jun",0,1,0.37,0]
["Jul",20,0,2,10,0.41500000000000004,1,null,null,null,"Jul",0,2,0.34,0,null,"Maximum: for 1/2 hourly and daily periods use the highest value across all operational combustion lines for the month"]
["Aug",20,0,1,10,0.37,1,null,null,null,"Aug",0,1,0.34,0]
["Sep",20,0,4,10,0.40500000000000003,1,null,null,null,"Sep",0,2,0.38,1]
["Oct",20,0,7,10,0.39500000000000002,1,null,null,null,"Oct",0,1,0.34,0]
["Nov",20,0,3,10,0.32,1,null,null,null,"Nov",0,3,0.22,1]
["Dec",20,0,2,10,0.30499999999999999,1,null,null,null,"Dec",0,1,0.2,0]
[null,null,null,null,null,null,null,null,null,null,"Annual",{"$f":"AVERAGE(L7:L18)","v":0},{"$f":"MAX(M7:M18)","v":3},{"$f":"AVERAGE(N7:N18)","v":0.29833333333333328},{"$f":"MAX(O7:O18)","v":1}]
[]
[null,null,null,null,null,null,null,null,null,{"$f":"+A6","v":2021},"mg/Nm3","Monthly 1/2 hourly mean","Monthly 1/2 hourly maximum","Monthly daily mean","Monthly daily maximum"]
[null,null,null,null,null,null,null,null,null,"A2","Jan",0,3,0.49,1]
[null,null,null,null,null,null,null,null,null,null,"Feb",0,1,0.3,0]
[null,null,null,null,null,null,null,null,null,null,"Mar",0,1,0.34,0]
[null,null,null,null,null,null,null,null,null,null,"Apr",0,1,0.18,0]
[null,null,null,null,null,null,null,null,null,null,"May",0,1,0.13,0]
[null,null,null,null,null,null,null,null,null,null,"Jun",0,1,0.49,1]
[null,null,null,null,null,null,null,null,null,null,"Jul",0,1,0.49,1]
[null,null,null,null,null,null,null,null,null,null,"Aug",0,1,0.4,1]
[null,null,null,null,null,null,null,null,null,null,"Sep",0,4,0.43,1]
[null,null,null,null,null,null,null,null,null,null,"Oct",0,7,0.45,1]
[null,null,null,null,null,null,null,null,null,null,"Nov",0,3,0.42,1]
[null,null,null,null,null,null,null,null,null,null,"Dec",0,2,0.41,1]
[null,null,null,null,null,null,null,null,null,null,"Annual",{"$f":"AVERAGE(L22:L33)","v":0},{"$f":"MAX(M22:M33)","v":7},{"$f":"AVERAGE(N22:N33)","v":0.3775},{"$f":"MAX(O22:O33)","v":1}]
[]
[]
[]
[]
[]
[]
[]
[]
[]
[]
[]
[]
[]
["Comments :"]

{"sheet":"Particulates","index":18,"n_rows":48,"n_cols":17,"rows_kept":48,"cut":false,"hidden":false,"merged":[[21,9,33,9],[47,0,47,6],[48,0,51,6],[3,16,7,18],[9,16,11,18],[12,16,15,18],[4,1,4,3],[4,4,4,6],[4,9,4,14],[6,9,18,9]]}
[{"$f":"+'Cover Page'!$B$29","v":"Annual Performance Report 2021"},null,null,null,{"$f":"+'Cover Page'!$B$33","v":"enfinium Ferrybridge 2 Ltd"}]
[]
["Monitoring of Particulate matter emissions",null,null,"Whole Installation",null,null,"See  Notes in Cell Q3",null,null,{"$f":"+A3","v":"Monitoring of Particulate matter emissions"},null,null,null,"Per Combustion Line",null,null,"Notes:"]
[null,null,null,null,null,null,null,null,null,null,null,null,null,null,null,null,"User to add logic to complete Whole installation, Table A5:G18. From the data in Per Combustion Line, Table J6:O79, subject to No. of lines installed"]
["mg/Nm3","1/2 Hourly Reference Periods",null,null,"Daily Reference Periods"]
[{"$f":"+'Cover Page'!C39","v":2021},"1/2 hourly PM ELV","Monthly 1/2 hourly mean","Highest 1/2 hourly maximum","Daily PM ELV","Monthly daily mean","Highest daily maximum",null,null,{"$f":"+A6","v":2021},"mg/Nm3","Monthly 1/2 hourly mean","Monthly 1/2 hourly maximum","Monthly daily mean","Monthly daily maximum"]
["Jan",30,{"$f":"AVERAGE(L7,L22)","v":0.5},{"$f":"MAX(M7,M22)","v":44},10,{"$f":"AVERAGE(N7,N22)","v":0.65500000000000003},{"$f":"MAX(O7,O22)","v":3},null,null,"A1","Jan",0,1,0.22,0]
["Feb",30,{"$f":"AVERAGE(L8,L23)","v":1},{"$f":"MAX(M8,M23)","v":28},10,{"$f":"AVERAGE(N8,N23)","v":1.2450000000000001},{"$f":"MAX(O8,O23)","v":7},null,null,null,"Feb",1,28,1.25,7]
["Mar",30,2,12,10,1.77,6,null,null,null,"Mar",3,12,2.5299999999999998,6,null,"Whole Installation table A5:G18:"]
["Apr",30,1.5,8,10,1.385,2,null,null,null,"Apr",2,7,1.66,2,null,"Mean: for 1/2 hourly and daily periods calculate mean of values across all operational combustion lines for the month"]
["May",30,2.5,99,10,2.41,13,null,null,null,"May",3,99,3.24,13]
["Jun",30,3,9,10,2.7749999999999999,5,null,null,null,"Jun",4,9,3.63,5]
["Jul",30,3.5,11,10,3.3650000000000002,7,null,null,null,"Jul",4,11,3.64,7,null,"Maximum: for 1/2 hourly and daily periods use the highest value across all operational combustion lines for the month"]
["Aug",30,3.5,10,10,3.47,6,null,null,null,"Aug",5,10,4.6500000000000004,6]
["Sep",30,3.5,15,10,3.73,7,null,null,null,"Sep",5,15,5.21,7]
["Oct",30,2.5,129,10,2.5249999999999999,5,null,null,null,"Oct",3,10,3.46,5]
["Nov",30,2.5,8,10,2.9649999999999999,7,null,null,null,"Nov",4,8,4.43,7]
["Dec",30,4,10,10,4.2649999999999997,8,null,null,null,"Dec",5,10,5.14,8]
[null,null,null,null,null,null,null,null,null,null,"Annual",{"$f":"AVERAGE(L7:L18)","v":3.25},{"$f":"MAX(M7:M18)","v":99},{"$f":"AVERAGE(N7:N18)","v":3.2550000000000003},{"$f":"MAX(O7:O18)","v":13}]
[]
[null,null,null,null,null,null,null,null,null,{"$f":"+A6","v":2021},"mg/Nm3","Monthly 1/2 hourly mean","Monthly 1/2 hourly maximum","Monthly daily mean","Monthly daily maximum"]
[null,null,null,null,null,null,null,null,null,"A2","Jan",1,44,1.0900000000000001,3]
[null,null,null,null,null,null,null,null,null,null,"Feb",1,13,1.24,2]
[null,null,null,null,null,null,null,null,null,null,"Mar",1,4,1.01,1]
[null,null,null,null,null,null,null,null,null,null,"Apr",1,8,1.1100000000000001,2]
[null,null,null,null,null,null,null,null,null,null,"May",2,8,1.58,2]
[null,null,null,null,null,null,null,null,null,null,"Jun",2,4,1.92,3]
[null,null,null,null,null,null,null,null,null,null,"Jul",3,8,3.09,6]
[null,null,null,null,null,null,null,null,null,null,"Aug",2,6,2.29,3]
[null,null,null,null,null,null,null,null,null,null,"Sep",2,4,2.25,3]
[null,null,null,null,null,null,null,null,null,null,"Oct",2,129,1.59,5]
[null,null,null,null,null,null,null,null,null,null,"Nov",1,3,1.5,2]
[null,null,null,null,null,null,null,null,null,null,"Dec",3,8,3.39,6]
[null,null,null,null,null,null,null,null,null,null,"Annual",{"$f":"AVERAGE(L22:L33)","v":1.75},{"$f":"MAX(M22:M33)","v":129},{"$f":"AVERAGE(N22:N33)","v":1.8383333333333332},{"$f":"MAX(O22:O33)","v":6}]
[]
[]
[]
[]
[]
[]
[]
[]
[]
[]
[]
[]
[]
["Comments :"]

{"sheet":"NH3","index":19,"n_rows":49,"n_cols":17,"rows_kept":49,"cut":false,"hidden":false,"merged":[[21,9,33,9],[47,0,47,6],[48,0,51,6],[3,16,7,18],[9,16,11,18],[12,16,15,18],[4,1,4,3],[4,4,4,6],[4,9,4,14],[6,9,18,9]]}
[{"$f":"+'Cover Page'!$B$29","v":"Annual Performance Report 2021"},null,null,null,{"$f":"+'Cover Page'!$B$33","v":"enfinium Ferrybridge 2 Ltd"}]
[]
["Monitoring of Ammnonia emissions ",null,null,"Whole Installation",null,null,"See  Notes in Cell Q3",null,null,{"$f":"+A3","v":"Monitoring of Ammnonia emissions "},null,null,null,"Per Combustion Line",null,null,"Notes:"]
[null,null,null,null,null,null,null,null,null,null,null,null,null,null,null,null,"User to add logic to complete Whole installation, Table A5:G18. From the data in Per Combustion Line, Table J6:O79, subject to No. of lines installed"]
["mg/Nm3","1/2 Hourly Reference Periods",null,null,"Daily Reference Periods"]
[{"$f":"+'Cover Page'!C39","v":2021},"1/2 hourly NH3 ELV","Monthly 1/2 hourly mean","Highest 1/2 hourly maximum","Daily NH3 ELV","Monthly daily mean","Highest daily maximum",null,null,{"$f":"+A6","v":2021},"mg/Nm3","Monthly 1/2 hourly mean","Monthly 1/2 hourly maximum","Monthly daily mean","Monthly daily maximum"]
["Jan",30,{"$f":"AVERAGE(L7,L22)","v":0},{"$f":"MAX(M7,M22)","v":1},0,{"$f":"AVERAGE(N7,N22)","v":5.0000000000000001E-3},{"$f":"MAX(O7,O22)","v":0},null,null,"A1","Jan",0,0,0,0]
["Feb",{"$f":"+B7","v":30},{"$f":"AVERAGE(L8,L23)","v":0},{"$f":"MAX(M8,M23)","v":3},0,{"$f":"AVERAGE(N8,N23)","v":6.0000000000000005E-2},{"$f":"MAX(O8,O23)","v":1},null,null,null,"Feb",0,3,0.05,1]
["Mar",{"$f":"+B8","v":30},0,1,0,2.5000000000000001E-2,1,null,null,null,"Mar",0,1,0.05,1,null,"Whole Installation table A5:G18:"]
["Apr",30,0,0,0,0.03,0,null,null,null,"Apr",0,0,0.06,0,null,"Mean: for 1/2 hourly and daily periods calculate mean of values across all operational combustion lines for the month"]
["May",30,0,11,0,0.14000000000000001,2,null,null,null,"May",0,11,0.28000000000000003,2]
["Jun",30,0,1,0,9.5000000000000001E-2,0,null,null,null,"Jun",0,1,0.19,0]
["Jul",30,0,1,0,0.08,0,null,null,null,"Jul",0,1,0.16,0,null,"Maximum: for 1/2 hourly and daily periods use the highest value across all operational combustion lines for the month"]
["Aug",30,0,0,0,7.0000000000000007E-2,0,null,null,null,"Aug",0,0,0.14000000000000001,0]
["Sep",30,0,1,{"$f":"+E14","v":0},6.5000000000000002E-2,0,null,null,null,"Sep",0,0,0.13,0]
["Oct",30,0,1,0,1.4999999999999999E-2,0,null,null,null,"Oct",0,0,0.03,0]
["Nov",30,0,3,0,0.02,0,null,null,null,"Nov",0,0,0.03,0]
["Dec",30,0,2,0,0.01,0,null,null,null,"Dec",0,0,0.01,0]
[null,null,null,null,null,null,null,null,null,null,"Annual",{"$f":"AVERAGE(L7:L18)","v":0},{"$f":"MAX(M7:M18)","v":11},{"$f":"AVERAGE(N7:N18)","v":9.4166666666666676E-2},{"$f":"MAX(O7:O18)","v":2}]
[]
[null,null,null,null,null,null,null,null,null,{"$f":"+A6","v":2021},"mg/Nm3","Monthly 1/2 hourly mean","Monthly 1/2 hourly maximum","Monthly daily mean","Monthly daily maximum"]
[null,null,null,null,null,null,null,null,null,"A2","Jan",0,1,0.01,0]
[null,null,null,null,null,null,null,null,null,null,"Feb",0,0,7.0000000000000007E-2,0]
[null,null,null,null,null,null,null,null,null,null,"Mar",0,0,0,0]
[null,null,null,null,null,null,null,null,null,null,"Apr",0,0,0,0]
[null,null,null,null,null,null,null,null,null,null,"May",0,0,0,0]
[null,null,null,null,null,null,null,null,null,null,"Jun",0,1,0,0]
[null,null,null,null,null,null,null,null,null,null,"Jul",0,0,0,0]
[null,null,null,null,null,null,null,null,null,null,"Aug",0,0,0,0]
[null,null,null,null,null,null,null,null,null,null,"Sep",0,1,0,0]
[null,null,null,null,null,null,null,null,null,null,"Oct",0,1,0,0]
[null,null,null,null,null,null,null,null,null,null,"Nov",0,3,0.01,0]
[null,null,null,null,null,null,null,null,null,null,"Dec",0,2,0.01,0]
[null,null,null,null,null,null,null,null,null,null,"Annual",{"$f":"AVERAGE(L22:L33)","v":0},{"$f":"MAX(M22:M33)","v":3},{"$f":"AVERAGE(N22:N33)","v":8.3333333333333332E-3},{"$f":"MAX(O22:O33)","v":0}]
[]
[]
[]
[]
[]
[]
[]
[]
[]
[]
[]
[]
[]
["Comments :"]
["An indicated ELV value of zero in the table above means that no ammonia limit is set in the permit.  "]

{"sheet":"CO 95% 10 min","index":20,"n_rows":49,"n_cols":19,"rows_kept":49,"cut":false,"hidden":false,"merged":[[21,10,33,10],[47,0,47,7],[48,0,51,7],[3,18,7,20],[9,18,11,20],[12,18,15,20],[4,1,4,4],[4,5,4,7],[4,10,4,16],[6,10,18,10]]}
[{"$f":"+'Cover Page'!$B$29","v":"Annual Performance Report 2021"},null,null,null,{"$f":"+'Cover Page'!$B$33","v":"enfinium Ferrybridge 2 Ltd"}]
[]
["Monitoring of Carbon Monoxide (10-minute avg)",null,null,null,"Whole Installation",null,null,"See  Notes in Cell S3",null,{"$f":"+A3","v":"Monitoring of Carbon Monoxide (10-minute avg)"},null,null,null,null,"Per Combustion Line",null,"Notes:",null,"Notes:"]
[null,null,null,null,null,null,null,null,null,null,null,null,null,null,null,null,null,null,"User to add logic to complete Whole installation, Table A5:H18. From the data in Per Combustion Line, Table K6:Q79, subject to No. of lines installed"]
["mg/Nm3","10-minute Reference Periods",null,null,null,"Daily Reference Periods"]
[{"$f":"+'Cover Page'!C39","v":2021},"95%ile 10-min avg CO ELV","95%ile 10-min avg maximum","Monthly CO 10-min avg mean","10-min avg maximum","Daily CO ELV","Monthly daily mean","Highest daily maximum",null,null,{"$f":"+A6","v":2021},"mg/Nm3","95%ile 10-min avg maximum","Monthly CO 10-min avg mean","10-min avg maximum","Monthly daily mean","Monthly daily maximum"]
["Jan",150,{"$f":"MAX(M7,M22)","v":6},{"$f":"AVERAGE(N7,N22)","v":1.5},{"$f":"MAX(O7,O22)","v":316},50,{"$f":"AVERAGE(P7,P22)","v":1.5699999999999998},{"$f":"MAX(Q7,Q22)","v":3},null,null,"A1","Jan",5,1,136,1.26,3]
["Feb",{"$f":"+B7","v":150},{"$f":"MAX(M8,M23)","v":5},{"$f":"AVERAGE(N8,N23)","v":2},{"$f":"MAX(O8,O23)","v":125},{"$f":"+F7","v":50},{"$f":"AVERAGE(P8,P23)","v":1.62},{"$f":"MAX(Q8,Q23)","v":3},null,null,null,"Feb",5,2,125,1.49,3]
["Mar",{"$f":"+B8","v":150},{"$f":"MAX(M9,M24)","v":4},1,{"$f":"MAX(O9,O24)","v":85},{"$f":"+F8","v":50},1.19,{"$f":"MAX(Q9,Q24)","v":3},null,null,null,"Mar",4,1,85,1.4,3,null,"Whole Installation table A5:H18:"]
["Apr",150,6,1.5,378,50,1.3599999999999999,4,null,null,null,"Apr",5,2,378,1.7,4,null,"Mean: for 10-min and daily periods use average of all operational combustion lines."]
["May",150,6,2,27,50,1.69,4,null,null,null,"May",6,2,27,1.6,4]
["Jun",150,7,1,39,50,1.45,3,null,null,null,"Jun",7,1,39,1.48,3]
["Jul",150,6,1.5,195,50,1.4249999999999998,3,null,null,null,"Jul",6,2,195,1.63,3,null,"Maximum: for 10-min and daily periods use the highest of all operational combustion lines in any month."]
["Aug",150,5,1,61,50,1.28,3,null,null,null,"Aug",5,1,61,1.49,3]
["Sep",150,7,1.5,420,50,1.4049999999999998,5,null,null,null,"Sep",7,2,307,1.68,4]
["Oct",150,8,2.5,154,50,2.33,4,null,null,null,"Oct",7,3,17,2.54,4]
["Nov",150,9,3.5,511,50,3.1949999999999998,6,null,null,null,"Nov",8,3,511,2.86,6]
["Dec",150,9,3,270,50,2.92,5,null,null,null,"Dec",8,2,16,2.23,3]
[null,null,null,null,null,null,null,null,null,null,null,"Annual",{"$f":"AVERAGE(M7:M18)","v":6.083333333333333},{"$f":"AVERAGE(N7:N18)","v":1.8333333333333333},{"$f":"MAX(O7:O18)","v":511},{"$f":"AVERAGE(P7:P18)","v":1.7800000000000002},{"$f":"MAX(Q7:Q18)","v":6}]
[]
[null,null,null,null,null,null,null,null,null,null,{"$f":"+A6","v":2021},"mg/Nm3","95%ile 10-min avg maximum","Monthly CO 10-min avg mean","10-min avg maximum","Monthly daily mean","Monthly daily maximum"]
[null,null,null,null,null,null,null,null,null,null,"A2","Jan",6,2,316,1.88,3]
[null,null,null,null,null,null,null,null,null,null,null,"Feb",5,2,56,1.75,3]
[null,null,null,null,null,null,null,null,null,null,null,"Mar",3,1,39,0.98,2]
[null,null,null,null,null,null,null,null,null,null,null,"Apr",6,1,122,1.02,2]
[null,null,null,null,null,null,null,null,null,null,null,"May",5,2,15,1.78,3]
[null,null,null,null,null,null,null,null,null,null,null,"Jun",5,1,12,1.42,2]
[null,null,null,null,null,null,null,null,null,null,null,"Jul",6,1,37,1.22,2]
[null,null,null,null,null,null,null,null,null,null,null,"Aug",5,1,16,1.07,2]
[null,null,null,null,null,null,null,null,null,null,null,"Sep",5,1,420,1.1299999999999999,5]
[null,null,null,null,null,null,null,null,null,null,null,"Oct",8,2,154,2.12,4]
[null,null,null,null,null,null,null,null,null,null,null,"Nov",9,4,389,3.53,6]
[null,null,null,null,null,null,null,null,null,null,null,"Dec",9,4,270,3.61,5]
[null,null,null,null,null,null,null,null,null,null,null,"Annual",{"$f":"AVERAGE(M22:M33)","v":6},{"$f":"AVERAGE(N22:N33)","v":1.8333333333333333},{"$f":"MAX(O22:O33)","v":420},{"$f":"AVERAGE(P22:P33)","v":1.7925000000000002},{"$f":"MAX(Q22:Q33)","v":6}]
[]
[]
[]
[]
[]
[]
[]
[]
[]
[]
[]
[]
[]
["Comments :"]
["Environment Agency explanatory note: The 10-minute average ELV is based on the “95th percentile”. In this case this means that 95% of the 10 minute averages in the relevant 24-hour period (i.e. 137) must be below 150 mg/Nm3, and 5% (i.e. 7) are allowed to be any value above 150 mg/Nm3. Whilst we expect operators to minimise CO emissions at all times, it is perfectly acceptable for the value of the maximum 10-minute average to be above 150 mg/Nm3, provided the 95th percentile ELV has been met for that period. "]